Workbook

Sheet 2023
C1: Industrial Park
C2: Income and Expense
C3: 2023 P&L
A4: ACCOUNT | C4: DESCRIPTION | D4: 2023-01-04 | E4: 2023-02-05 | F4: 2023-03-06 | G4: 2023-04-07 | H4: 2023-05-08 | I4: 2023-06-09 | J4: 2023-07-10 | K4: 2023-08-11 | L4: 2023-09-01 | M4: 2023-10-01 | N4: 2023-11-01 | O4: 2023-12-01 | P4: Total
C5: INCOME
C7: REVENUE
C8: Total Rent Per Schedule | D8: 51425 | E8: 51425 | F8: 51425 | G8: 51425 | H8: 51425 | I8: 52065 | J8: 52065 | K8: 52065 | L8: 52065 | M8: 52065 | N8: 52065 | O8: 52065 | P8: =SUM(D8:O8) -> 621580
C9: Less: Loss to Lease in Force | D9: 0 | E9: 0 | F9: 0 | G9: 0 | H9: 0 | I9: 0 | J9: 0 | K9: 0 | L9: 0 | P9: =SUM(D9:O9) -> 0
C10: Leases in Excess Of Market | D10: 0 | E10: 0 | F10: 0 | G10: 0 | H10: 0 | I10: 0 | J10: 0 | K10: 0 | L10: 0 | P10: =SUM(D10:O10) -> 0
C12: GROSS POTENTIAL RENT | D12: =SUM(D8:D10) -> 51425 | E12: 51425 | F12: 51425 | G12: 51425 | H12: 51425 | I12: 52065 | J12: 52065 | K12: 52065 | L12: 52065 | M12: 52065 | N12: 52065 | O12: 52065 | P12: =SUM(P8:P10) -> 621580
C14: RENTAL LOSSES
C15: Vacancy Loss | D15: -2318.47 | E15: -1507.74 | F15: -5333.95 | G15: -4425 | H15: -4045 | I15: -2626.77 | J15: -1355 | K15: -5251.86 | L15: -3065 | M15: -7225.2 | N15: -2378.65 | O15: -5498.5 | P15: =SUM(D15:O15) -> -45031.14
C16: Model/Administrative Units | D16: 0 | E16: 0 | F16: 0 | G16: 0 | H16: 0 | I16: 0 | J16: 0 | K16: 0 | L16: 0 | M16: 0 | N16: 0 | O16: 0 | P16: =SUM(D16:O16) -> 0
C17: Out of Service/Down Units | D17: 0 | E17: 0 | F17: 0 | G17: 0 | H17: 0 | I17: 0 | J17: 0 | K17: 0 | L17: 0 | M17: 0 | N17: 0 | O17: 0 | P17: 0
C18: Employee Units | D18: 0 | E18: 0 | F18: 0 | G18: 0 | H18: 0 | I18: 0 | J18: 0 | K18: 0 | L18: 0 | M18: 0 | N18: 0 | O18: 0 | P18: 0
C19: Courtesy Officer Units | D19: 0 | E19: 0 | F19: 0 | G19: 0 | H19: 0 | I19: 0 | J19: 0 | K19: 0 | L19: 0 | M19: 0 | N19: 0 | O19: 0 | P19: 0
C20: Discount Given | D20: 0 | E20: 0 | F20: 0 | G20: 0 | H20: 0 | I20: 0 | J20: 0 | K20: 0 | L20: 0 | M20: 0 | N20: 0 | O20: 0 | P20: 0
C21: One-Time Special or Allowance | D21: 0 | E21: 0 | F21: 0 | G21: 0 | H21: 0 | I21: 0 | J21: 0 | K21: 0 | L21: 0 | M21: 0 | N21: 0 | O21: 0 | P21: 0
C22: Concessions | D22: 0 | E22: 0 | F22: 0 | G22: 0 | H22: 0 | I22: 0 | J22: 0 | K22: 0 | L22: 0 | M22: 0 | N22: 0 | O22: 0 | P22: 0
C23: Write-Off Uncollectible | D23: 0 | E23: 0 | F23: 0 | G23: 0 | H23: 0 | I23: 0 | J23: 0 | K23: 0 | L23: 0 | M23: 0 | N23: 0 | O23: 0 | P23: 0
C24: Miscellaneous Credit | D24: 0 | E24: 0 | F24: 0 | G24: 0 | H24: 0 | I24: 0 | J24: 0 | K24: 0 | L24: 0 | M24: 0 | N24: 0 | O24: 0 | P24: 0
C26: TOTAL RENTAL LOSSES | D26: =SUM(D15:D24) -> -2318.47 | E26: -1507.74 | F26: -5333.95 | G26: -4425 | H26: -4045 | I26: -2626.77 | J26: -1355 | K26: -5251.86 | L26: -3065 | M26: -7225.2 | N26: -2378.65 | O26: -5498.5 | P26: =SUM(P15:P24) -> -45031.14
C28: NET RENTAL REVENUE | D28: =D12+D26 -> 49106.53 | E28: 49917.26 | F28: 46091.05 | G28: 47000 | H28: 47380 | I28: =I12+I26 -> 49438.23 | J28: 50710 | K28: 46813.14 | L28: 49000 | M28: 44839.8 | N28: 49686.35 | O28: 46566.5 | P28: =P12+P26 -> 576548.86
C30: OTHER REVENUE
C31: Late Charges | D31: 0 | E31: 0 | F31: 0 | G31: 0 | H31: 0 | I31: 0 | J31: 0 | K31: 0 | L31: 0 | M31: 0 | N31: 0 | O31: 0 | P31: =SUM(D31:O31) -> 0
C32: Reletting Fee | D32: 0 | E32: 0 | F32: 0 | G32: 0 | H32: 0 | I32: 0 | J32: 0 | K32: 0 | L32: 0 | M32: 0 | N32: 0 | O32: 0 | P32: =SUM(D32:O32) -> 0
C33: NSF Fee Income | D33: 0 | E33: 0 | F33: 0 | G33: 0 | H33: 0 | I33: 0 | J33: 0 | K33: 0 | L33: 0 | M33: 0 | N33: 0 | O33: 0 | P33: 0
C34: Move out and Cleaning Repairs | D34: 0 | E34: 0 | F34: 0 | G34: 0 | H34: 0 | I34: 0 | J34: 0 | K34: 0 | L34: 0 | M34: 0 | N34: 0 | O34: 0 | P34: 0
C35: Damages Charged to Residents | D35: 0 | E35: 0 | F35: 0 | G35: 0 | H35: 0 | I35: 0 | J35: 0 | K35: 0 | L35: 0 | M35: 0 | N35: 0 | O35: 0 | P35: 0
C36: Keys, Locks, Lock Changes | D36: 0 | E36: 0 | F36: 0 | G36: 0 | H36: 0 | I36: 0 | J36: 0 | K36: 0 | L36: 0 | M36: 0 | N36: 0 | O36: 0 | P36: 0
C37: Lease Termination Fee Income | D37: 0 | E37: 0 | F37: 0 | G37: 0 | H37: 0 | I37: 0 | J37: 0 | K37: 0 | L37: 0 | M37: 0 | N37: 0 | O37: 0 | P37: 0
C38: Month To Month Fees | D38: 0 | E38: 0 | F38: 0 | G38: 0 | H38: 0 | I38: 0 | J38: 0 | K38: 0 | L38: 0 | M38: 0 | N38: 0 | O38: 0 | P38: 0
C39: Deposit Forfeitures | D39: 0 | E39: 0 | F39: 0 | G39: 0 | H39: 0 | I39: 0 | J39: 0 | K39: 0 | L39: 0 | M39: 0 | N39: 0 | O39: 0 | P39: 0
C40: Legal & Collection Fee Income | D40: 0 | E40: 0 | F40: 0 | G40: 0 | H40: 0 | I40: 0 | J40: 0 | K40: 0 | L40: 0 | M40: 0 | N40: 0 | O40: 0 | P40: 0
C41: Utility Reimbursements | D41: 0 | E41: 0 | F41: 0 | G41: 0 | H41: 0 | I41: 0 | J41: 0 | K41: 0 | L41: 0 | M41: 0 | N41: 0 | O41: 0 | P41: 0
C42: Application Fee Income | D42: 0 | E42: 0 | F42: 0 | G42: 0 | H42: 0 | I42: 0 | J42: 0 | K42: 0 | L42: 0 | M42: 0 | N42: 0 | O42: 0 | P42: 0
C43: Pet Fee Income | D43: 0 | E43: 0 | F43: 0 | G43: 0 | H43: 0 | I43: 0 | J43: 0 | K43: 0 | L43: 0 | M43: 0 | N43: 0 | O43: 0 | P43: 0
C44: Pet Fee Non-Refundable | D44: 0 | E44: 0 | F44: 0 | G44: 0 | H44: 0 | I44: 0 | J44: 0 | K44: 0 | L44: 0 | M44: 0 | N44: 0 | O44: 0 | P44: 0
C45: Referral Fee Income | D45: 0 | E45: 0 | F45: 0 | G45: 0 | H45: 0 | I45: 0 | J45: 0 | K45: 0 | L45: 0 | M45: 0 | N45: 0 | O45: 0 | P45: 0
C46: Laundry Room Income | D46: 0 | E46: 0 | F46: 0 | G46: 0 | H46: 0 | I46: 0 | J46: 0 | K46: 0 | L46: 0 | M46: 0 | N46: 0 | O46: 0 | P46: 0
C47: Washer/Dryer Rental Income | D47: 0 | E47: 0 | F47: 0 | G47: 0 | H47: 0 | I47: 0 | J47: 0 | K47: 0 | L47: 0 | M47: 0 | N47: 0 | O47: 0 | P47: 0
C48: Reserved/Covered Parking Fees | D48: 0 | E48: 0 | F48: 0 | G48: 0 | H48: 0 | I48: 0 | J48: 0 | K48: 0 | L48: 0 | M48: 0 | N48: 0 | O48: 0 | P48: 0
C49: Storage Space Rental | D49: 0 | E49: 0 | F49: 0 | G49: 0 | H49: 0 | I49: 0 | J49: 0 | K49: 0 | L49: 0 | M49: 0 | N49: 0 | O49: 0 | P49: 0
C50: Corporate Suite Rental | D50: 0 | E50: 0 | F50: 0 | G50: 0 | H50: 0 | I50: 0 | J50: 0 | K50: 0 | L50: 0 | M50: 0 | N50: 0 | O50: 0 | P50: 0
C51: Miscellaneous Income | D51: 493.33 | E51: 2527.81 | F51: 384.85 | G51: 294.55 | H51: 2038.81 | I51: 283.45 | J51: 385.6 | K51: 365.75 | L51: 643.9 | M51: 279.9 | N51: 390.72 | O51: 525.55 | P51: 8614.22
C53: TOTAL OTHER REVENUE | D53: =SUM(D31:D51) -> 493.33 | E53: 2527.81 | F53: 384.85 | G53: 294.55 | H53: 2038.81 | I53: 283.45 | J53: 385.6 | K53: 365.75 | L53: 643.9 | M53: 279.9 | N53: 390.72 | O53: 525.55 | P53: =SUM(P31:P51) -> 8614.22
C55: TOTAL INCOME | D55: =D28+D53 -> 49599.86 | E55: 52445.07 | F55: 46475.9 | G55: 47294.55 | H55: 49418.81 | I55: 49721.68 | J55: 51095.6 | K55: 47178.89 | L55: 49643.9 | M55: 45119.7 | N55: 50077.07 | O55: 47092.05 | P55: 585163.08
C57: OPERATING EXPENSES
C59: ADMINISTRATIVE EXPENSE
A60: 5120 | C60: Credit Reports | D60: 0 | E60: 0 | F60: 0 | G60: 0 | H60: 0 | I60: 0 | J60: 0 | K60: 0 | L60: 0 | M60: 0 | N60: 0 | O60: 0 | P60: =SUM(D60:O60) -> 0
A61: 5130 | C61: Dues and Subscriptions | D61: 0 | E61: 0 | F61: 0 | G61: 0 | H61: 0 | I61: 0 | J61: 0 | K61: 0 | L61: 0 | M61: 0 | N61: 0 | O61: 0 | P61: =SUM(D61:O61) -> 0
A62: 5140 | C62: Telephone and Yellow Pages | D62: 0 | E62: 0 | F62: 0 | G62: 0 | H62: 0 | I62: 0 | J62: 0 | K62: 0 | L62: 0 | M62: 0 | N62: 0 | O62: 0 | P62: 0
A63: 5150 | C63: Advertising | D63: 0 | E63: 598 | F63: 299 | G63: 299 | H63: 0 | I63: 0 | J63: 0 | K63: 0 | L63: 0 | M63: 0 | N63: 0 | O63: 0 | P63: 1196
A64: 5155 | C64: Cable Provider | D64: 0 | E64: 0 | F64: 0 | G64: 0 | H64: 0 | I64: 0 | J64: 0 | K64: 0 | L64: 0 | M64: 0 | N64: 0 | O64: 0 | P64: 0
A65: 5160 | C65: Office Supplies and Equipment | D65: 0 | E65: 0 | F65: 0 | G65: 0 | H65: 0 | I65: 0 | J65: 0 | K65: 0 | L65: 0 | M65: 0 | N65: 0 | O65: 0 | P65: 0
A66: 5170 | C66: Tenant Screening | D66: 0 | E66: 0 | F66: 0 | G66: 0 | H66: 0 | I66: 0 | J66: 0 | K66: 0 | L66: 0 | M66: 0 | N66: 0 | O66: 0 | P66: 0
A67: 5180 | C67: Postage, Courier & Freight | D67: 0 | E67: 0 | F67: 0 | G67: 0 | H67: 0 | I67: 0 | J67: 0 | K67: 0 | L67: 0 | M67: 0 | N67: 0 | O67: 0 | P67: 0
A68: 5190 | C68: Administrative Expense | D68: 0 | E68: 0 | F68: 0 | G68: 0 | H68: 0 | I68: 0 | J68: 0 | K68: 0 | L68: 0 | M68: 0 | N68: 0 | O68: 0 | P68: 0
A69: 5600 | C69: Mileage | D69: 0 | E69: 0 | F69: 0 | G69: 0 | H69: 0 | I69: 0 | J69: 0 | K69: 0 | L69: 0 | M69: 0 | N69: 0 | O69: 0 | P69: 0
A70: 5620 | C70: Accounting Services | D70: 0 | E70: 0 | F70: 0 | G70: 0 | H70: 0 | I70: 0 | J70: 0 | K70: 0 | L70: 0 | M70: 0 | N70: 0 | O70: 0 | P70: 0
A71: 5630 | C71: Legal Services | D71: 0 | E71: 0 | F71: 0 | G71: 0 | H71: 0 | I71: 0 | J71: 0 | K71: 0 | L71: 0 | M71: 0 | N71: 0 | O71: 0 | P71: 0
A72: 5635 | C72: Office Supplies | D72: 0 | E72: 0 | F72: 0 | G72: 0 | H72: 0 | I72: 0 | J72: 0 | K72: 0 | L72: 0 | M72: 0 | N72: 0 | O72: 0 | P72: 0
A73: 5640 | C73: Miscellaneous | D73: 0 | E73: 0 | F73: 0 | G73: 0 | H73: 0 | I73: 0 | J73: 0 | K73: 0 | L73: 0 | M73: 0 | N73: 0 | O73: 0 | P73: 0
C75: TOTAL ADMINISTRATIVE | D75: =SUM(D60:D73) -> 0 | E75: 598 | F75: 299 | G75: =SUM(G60:G74) -> 299 | H75: 0 | I75: 0 | J75: 0 | K75: 0 | L75: 0 | M75: 0 | N75: 0 | O75: 0 | P75: =SUM(D75:O75) -> 1196
C77: MANAGEMENT FEES
A78: 5610 | C78: Management Fees | D78: 0 | E78: 0 | F78: 0 | G78: 0 | H78: 0 | I78: 0 | J78: 0 | K78: 0 | L78: 0 | M78: 0 | N78: 0 | O78: 0 | P78: =SUM(D78:O78) -> 0
C79: Commission Placement Fee | D79: 0 | E79: 0 | F79: 0 | G79: 0 | H79: 0 | I79: 0 | J79: 0 | K79: 0 | L79: 0 | M79: 0 | N79: 0 | O79: 0 | P79: =SUM(D79:O79) -> 0
C81: TOTAL MANAGEMENT FEES | D81: =D78+D79 -> 0 | E81: 0 | F81: 0 | G81: 0 | H81: 0 | I81: 0 | J81: 0 | K81: 0 | L81: 0 | M81: 0 | N81: 0 | O81: 0 | P81: =SUM(D81:O81) -> 0
C83: SALARY EXPENSE
A84: 6010 | C84: Payroll-Office & Maintenance | D84: 0 | E84: 0 | F84: 0 | G84: 0 | H84: 0 | I84: 0 | J84: 0 | K84: 0 | L84: 0 | M84: 0 | N84: 0 | O84: 0 | P84: =SUM(D84:O84) -> 0
A85: 6020 | C85: Payroll-Clerical & Office | D85: 0 | E85: 0 | F85: 0 | G85: 0 | H85: 0 | I85: 0 | J85: 0 | K85: 0 | L85: 0 | M85: 0 | N85: 0 | O85: 0 | P85: =SUM(D85:O85) -> 0
A86: 6030 | C86: Payroll-Leasing | D86: 0 | E86: 0 | F86: 0 | G86: 0 | H86: 0 | I86: 0 | J86: 0 | K86: 0 | L86: 0 | M86: 0 | N86: 0 | O86: 0 | P86: 0
A87: 6040 | C87: Payroll-Maintenance | D87: 0 | E87: 0 | F87: 0 | G87: 0 | H87: 0 | I87: 0 | J87: 0 | K87: 0 | L87: 0 | M87: 0 | N87: 0 | O87: 0 | P87: 0
C88: Employer FICA-Total Payroll Tax | D88: 0 | E88: 0 | F88: 0 | G88: 0 | H88: 0 | I88: 0 | J88: 0 | K88: 0 | L88: 0 | M88: 0 | N88: 0 | O88: 0 | P88: 0
C89: Employer FUTA | D89: 0 | E89: 0 | F89: 0 | G89: 0 | H89: 0 | I89: 0 | J89: 0 | K89: 0 | L89: 0 | M89: 0 | N89: 0 | O89: 0 | P89: 0
C90: Employer SUTA | D90: 0 | E90: 0 | F90: 0 | G90: 0 | H90: 0 | I90: 0 | J90: 0 | K90: 0 | L90: 0 | M90: 0 | N90: 0 | O90: 0 | P90: 0
C91: Workers Compensation | D91: 0 | E91: 0 | F91: 0 | G91: 0 | H91: 0 | I91: 0 | J91: 0 | K91: 0 | L91: 0 | M91: 0 | N91: 0 | O91: 0 | P91: 0
A92: 6210 | C92: Group Health Insurance | D92: 0 | E92: 0 | F92: 0 | G92: 0 | H92: 0 | I92: 0 | J92: 0 | K92: 0 | L92: 0 | M92: 0 | N92: 0 | O92: 0 | P92: 0
C93: Other Employee Benefits | D93: 0 | E93: 0 | F93: 0 | G93: 0 | H93: 0 | I93: 0 | J93: 0 | K93: 0 | L93: 0 | M93: 0 | N93: 0 | O93: 0 | P93: 0
C95: TOTAL SALARY | D95: =SUM(D84:D93) -> 0 | E95: 0 | F95: 0 | G95: 0 | H95: 0 | I95: 0 | J95: 0 | K95: 0 | L95: 0 | M95: 0 | N95: 0 | O95: 0 | P95: =SUM(D95:O95) -> 0
C97: REPAIRS & MAINTENANCE
A98: 7010 | C98: Equipment/Repairs | D98: 0 | E98: 0 | F98: 0 | G98: 0 | H98: 0 | I98: 0 | J98: 0 | K98: 0 | L98: 0 | M98: 0 | N98: 0 | O98: 0 | P98: =SUM(D98:O98) -> 0
A99: 7020 | C99: Spare Parts | D99: 0 | E99: 0 | F99: 0 | G99: 0 | H99: 0 | I99: 0 | J99: 0 | K99: 0 | L99: 0 | M99: 0 | N99: 0 | O99: 0 | P99: =SUM(D99:O99) -> 0
A100: 7100 | C100: HVAC | D100: 0 | E100: 0 | F100: 0 | G100: 0 | H100: 0 | I100: 0 | J100: 0 | K100: 0 | L100: 0 | M100: 0 | N100: 0 | O100: 0 | P100: 0
A101: 7110 | C101: Contract Repair Services | D101: 0 | E101: 0 | F101: 0 | G101: 0 | H101: 0 | I101: 0 | J101: 0 | K101: 0 | L101: 0 | M101: 0 | N101: 0 | O101: 0 | P101: 0
A102: 7120 | C102: Pool Repairs and Supplies | D102: 0 | E102: 0 | F102: 0 | G102: 0 | H102: 0 | I102: 0 | J102: 0 | K102: 0 | L102: 0 | M102: 0 | N102: 0 | O102: 0 | P102: 0
A103: 7130 | C103: Paint & Painting Services | D103: 0 | E103: 0 | F103: 396.53 | G103: 0 | H103: 0 | I103: 0 | J103: 0 | K103: 0 | L103: 0 | M103: 0 | N103: 0 | O103: 0 | P103: 396.53
A104: 7135 | C104: Maintenance Supplies | D104: 0 | E104: 0 | F104: 0 | G104: 0 | H104: 0 | I104: 0 | J104: 0 | K104: 0 | L104: 0 | M104: 0 | N104: 0 | O104: 0 | P104: 0
A105: 7140 | C105: Plumbing Supplies & Services | D105: 0 | E105: 0 | F105: 0 | G105: 0 | H105: 0 | I105: 0 | J105: 0 | K105: 0 | L105: 0 | M105: 0 | N105: 0 | O105: 0 | P105: 0
A106: 7145 | C106: Cleaning Supplies | D106: 0 | E106: 0 | F106: 0 | G106: 0 | H106: 0 | I106: 0 | J106: 0 | K106: 0 | L106: 0 | M106: 0 | N106: 0 | O106: 0 | P106: 0
A107: 7150 | C107: Electrical Supplies and Services | D107: 0 | E107: 0 | F107: 0 | G107: 0 | H107: 0 | I107: 0 | J107: 0 | K107: 0 | L107: 0 | M107: 0 | N107: 0 | O107: 0 | P107: 0
A108: 7155 | C108: Hardware/Carpentry | D108: 0 | E108: 0 | F108: 0 | G108: 0 | H108: 0 | I108: 0 | J108: 0 | K108: 0 | L108: 0 | M108: 0 | N108: 0 | O108: 0 | P108: 0
A109: 7160 | C109: Make Ready | D109: 0 | E109: 0 | F109: 0 | G109: 0 | H109: 0 | I109: 0 | J109: 0 | K109: 0 | L109: 0 | M109: 0 | N109: 0 | O109: 0 | P109: 0
A110: 7170 | C110: Roof Repairs | D110: 0 | E110: 0 | F110: 0 | G110: 0 | H110: 0 | I110: 0 | J110: 0 | K110: 0 | L110: 0 | M110: 0 | N110: 0 | O110: 0 | P110: 0
A111: 7180 | C111: Building Exterior Repairs | D111: 0 | E111: 0 | F111: 0 | G111: 0 | H111: 0 | I111: 0 | J111: 0 | K111: 0 | L111: 0 | M111: 0 | N111: 0 | O111: 0 | P111: 0
A112: 7190 | C112: Window & Door Repairs | D112: 0 | E112: 0 | F112: 0 | G112: 0 | H112: 0 | I112: 0 | J112: 0 | K112: 0 | L112: 0 | M112: 0 | N112: 0 | O112: 0 | P112: 0
A113: 7200 | C113: Keys and Locks | D113: 0 | E113: 0 | F113: 0 | G113: 0 | H113: 0 | I113: 0 | J113: 0 | K113: 0 | L113: 0 | M113: 0 | N113: 0 | O113: 0 | P113: 0
A114: 7210 | C114: Carpet & Floor Cleaning & Repair | D114: 0 | E114: 0 | F114: 0 | G114: 0 | H114: 0 | I114: 0 | J114: 0 | K114: 0 | L114: 405.94 | M114: 0 | N114: 0 | O114: 0 | P114: 405.94
A115: 7220 | C115: Floor & Carpet Replacement | D115: 0 | E115: 0 | F115: 0 | G115: 0 | H115: 0 | I115: 0 | J115: 0 | K115: 0 | L115: 0 | M115: 0 | N115: 0 | O115: 0 | P115: 0
A116: 7350 | C116: Miscellaneous | D116: 400 | E116: 290 | F116: 0 | G116: 0 | H116: 400 | I116: 1595 | J116: 315 | K116: 0 | L116: 0 | M116: 940 | N116: 0 | O116: 0 | P116: 3940
C118: TOTAL REPAIRS & MAINTENANCE | D118: =SUM(D98:D116) -> 400 | E118: 290 | F118: 396.53 | G118: 0 | H118: 400 | I118: 1595 | J118: 315 | K118: 0 | L118: 405.94 | M118: 940 | N118: 0 | O118: 0 | P118: =SUM(D118:O118) -> 4742.47
C120: UTILITIES
A121: 7500 | C121: Utilities-Gas | D121: 0 | E121: 0 | F121: 0 | G121: 0 | H121: 0 | I121: 0 | J121: 0 | K121: 0 | L121: 0 | M121: 0 | N121: 0 | O121: 0 | P121: =SUM(D121:O121) -> 0
A122: 7510 | C122: Utilities-Electricity | D122: 172.4 | E122: 271.3 | F122: 195.39 | G122: 265.23 | H122: 187.47 | I122: 197.1 | J122: 117.05 | K122: 191.47 | L122: 650.71 | M122: 426.47 | N122: 284.76 | O122: 255.38 | P122: =SUM(D122:O122) -> 3214.73
A123: 7520 | C123: Utilities-Water | D123: 918.92 | E123: 749.51 | F123: 694.56 | G123: 686.77 | H123: 724.39 | I123: 918.2 | J123: 1136.65 | K123: 1177.36 | L123: 758.83 | M123: 978.59 | N123: 761.96 | O123: 737.26 | P123: 10243
A124: 7530 | C124: Utilities-Trash | D124: 466.72 | E124: 466.72 | F124: 466.72 | G124: 466.72 | H124: 466.72 | I124: 466.72 | J124: 466.72 | K124: 466.72 | L124: 466.72 | M124: 466.72 | N124: 466.72 | O124: 466.72 | P124: 5600.64
A125: 7540 | C125: Utilities-Sewer | D125: 0 | E125: 0 | F125: 0 | G125: 0 | H125: 0 | I125: 0 | J125: 0 | K125: 0 | L125: 0 | P125: 0
C127: TOTAL UTILITIES | D127: =SUM(D121:D125) -> 1558.04 | E127: =SUM(E121:E125) -> 1487.53 | F127: =SUM(F121:F125) -> 1356.67 | G127: 1418.72 | H127: 1378.58 | I127: 1582.02 | J127: 1720.42 | K127: =SUM(K121:K125) -> 1835.55 | L127: =SUM(L121:L125) -> 1876.26 | M127: =SUM(M121:M125) -> 1871.78 | N127: 1513.44 | O127: 1459.36 | P127: =SUM(D127:O127) -> 19058.37
C129: CONTRACT SERVICES
A130: 7610 | C130: Contract-Cable | D130: 552.13 | E130: 552.13 | F130: 552.13 | G130: 552.13 | H130: 552.13 | I130: 552.13 | J130: 552.13 | K130: 552.13 | L130: 552.13 | M130: 552.13 | N130: 552.13 | O130: 552.13 | P130: =SUM(D130:O130) -> 6625.56
A131: 7620 | C131: Contract-Pest Control | D131: 0 | E131: 70.36 | F131: 0 | G131: 0 | H131: 0 | I131: 0 | J131: 0 | K131: 81.19 | L131: 0 | M131: 0 | N131: 105 | O131: 0 | P131: =SUM(D131:O131) -> 256.55
A132: 7630 | C132: Contract-Landscape/Yard Care | D132: 800 | E132: 0 | F132: 0 | G132: 110 | H132: 110 | I132: 110 | J132: 110 | K132: 0 | L132: 0 | M132: 1030.13 | N132: 110 | O132: 0 | P132: 2380.13
C133: Contract-Internet | D133: 1679 | E133: 1679 | F133: 1679 | G133: 1679 | H133: 1679 | I133: 1679 | J133: 1679 | K133: 1679 | L133: 1679 | M133: 1679 | N133: 1679 | O133: 1679 | P133: 20148
A134: 7650 | C134: Contract-Cleaning | D134: 0 | E134: 0 | F134: 0 | G134: 0 | H134: 0 | I134: 0 | J134: 0 | K134: 0 | L134: 0 | M134: 0 | N134: 0 | O134: 0 | P134: 0
C135: Contract Services | D135: 0 | E135: 0 | F135: 5900 | G135: 919.28 | H135: 0 | I135: 0 | J135: 254.95 | K135: 0 | L135: 710.75 | M135: 0 | N135: 139.95 | O135: 1130 | P135: 9054.93
C137: TOTAL CONTRACT SERVICES | D137: =SUM(D130:D135) -> 3031.13 | E137: 2301.49 | F137: 8131.13 | G137: 3260.41 | H137: 2341.13 | I137: 2341.13 | J137: 2596.08 | K137: 2312.32 | L137: 2941.88 | M137: 3261.26 | N137: 2586.08 | O137: 3361.13 | P137: =SUM(D137:O137) -> 38465.17
C139: TAXES & INSURANCE
A140: 8010 | C140: Ad Valorem (Property ) Taxes | D140: 8525 | E140: 8525 | F140: 8525 | G140: 8525 | H140: 8525 | I140: 8525 | J140: 8525 | K140: 8525 | L140: 8525 | M140: 8525 | N140: 8525 | O140: 8525 | P140: =SUM(D140:O140) -> 102300
C141: Fees & Duties | D141: 0 | E141: 0 | F141: 0 | G141: 0 | H141: 0 | I141: 0 | J141: 0 | K141: 0 | L141: 0 | M141: 0 | N141: 0 | O141: 0 | P141: =SUM(D141:O141) -> 0
C142: Other Taxes | D142: 0 | E142: 0 | F142: 0 | G142: 0 | H142: 0 | I142: 0 | J142: 0 | K142: 0 | L142: 0 | M142: 0 | N142: 0 | O142: 0 | P142: 0
A143: 8120 | C143: Insurance | D143: 1501.67 | E143: 1501.67 | F143: 1501.67 | G143: 1501.67 | H143: 1501.67 | I143: 1501.67 | J143: 1501.67 | K143: 1501.67 | L143: 1501.67 | M143: 1501.67 | N143: 1501.67 | O143: 1501.67 | P143: 18020.04
C145: TOTAL TAXES & INSURANCE | D145: =SUM(D140:D143) -> 10026.67 | E145: 10026.67 | F145: 10026.67 | G145: 10026.67 | H145: 10026.67 | I145: =SUM(I140:I144) -> 10026.67 | J145: 10026.67 | K145: 10026.67 | L145: 10026.67 | M145: 10026.67 | N145: 10026.67 | O145: 10026.67 | P145: =SUM(D145:O145) -> 120320.04
C148: TOTAL OPERATING EXPENSE | D148: =D75+D81+D84+D118+D127+D137+D145 -> 15015.84 | E148: 14703.69 | F148: 20210 | G148: 15004.8 | H148: 14146.38 | I148: 15544.82 | J148: 14658.17 | K148: 14174.54 | L148: 15250.75 | M148: 16099.71 | N148: 14126.19 | O148: 14847.16 | P148: =SUM(D148:O148) -> 183782.05
C150: NET OPERATING INCOME | D150: =D55-D148 -> 34584.02 | E150: 37741.38 | F150: 26265.9 | G150: 32289.75 | H150: 35272.43 | I150: 34176.86 | J150: 36437.43 | K150: 33004.35 | L150: 34393.15 | M150: 29019.99 | N150: 35950.88 | O150: 32244.89 | P150: =P55-P148 -> 401381.03
C152: RECURRING REPLACEMENTS
C153: Flooring Replacement | D153: 0 | E153: 0 | F153: 0 | G153: 0 | H153: 0 | I153: 0 | J153: 0 | K153: 0 | L153: 0 | M153: 0 | N153: 0 | O153: 0 | P153: =SUM(D153:O153) -> 0
C154: Mini-Blind Replacement | D154: 0 | E154: 0 | F154: 0 | G154: 0 | H154: 0 | I154: 0 | J154: 0 | K154: 0 | L154: 0 | M154: 0 | N154: 0 | O154: 0 | P154: =SUM(D154:O154) -> 0
C155: Appliance Replacement | D155: 0 | E155: 0 | F155: 0 | G155: 0 | H155: 0 | I155: 0 | J155: 0 | K155: 0 | L155: 0 | M155: 0 | N155: 375.63 | O155: 0 | P155: 375.63
C156: Individual Unit Water Heater | D156: 0 | E156: 0 | F156: 0 | G156: 0 | H156: 0 | I156: 0 | J156: 0 | K156: 0 | L156: 0 | M156: 0 | N156: 0 | O156: 0 | P156: 0
C158: TOTAL RECURRING REPLACEMENTS | D158: =SUM(D153:D156) -> 0 | E158: =SUM(E153:E157) -> 0 | F158: 0 | G158: 0 | H158: 0 | I158: 0 | J158: 0 | K158: 0 | L158: 0 | M158: 0 | N158: 375.63 | O158: 0 | P158: =SUM(P153:P156) -> 375.63
C160: NON-RECURRING REPLACMENTS
C161: Various Contractors | D161: 0 | E161: 0 | F161: 0 | G161: 0 | H161: 0 | I161: 0 | J161: 0 | K161: 0 | L161: 0 | M161: 0 | N161: 0 | O161: 0 | P161: =SUM(D161:O161) -> 0
C162: Playground/Recreational Eqp. | D162: 0 | E162: 0 | F162: 0 | G162: 0 | H162: 0 | I162: 0 | J162: 0 | K162: 0 | L162: 0 | M162: 0 | N162: 0 | O162: 0 | P162: =SUM(D162:O162) -> 0
C163: Monument/Directional Signage | D163: 0 | E163: 0 | F163: 0 | G163: 0 | H163: 0 | I163: 0 | J163: 0 | K163: 0 | L163: 0 | M163: 0 | N163: 0 | O163: 0 | P163: 0
C164: Lawns/Trees/Shrubs Repl. | D164: 0 | E164: 0 | F164: 0 | G164: 0 | H164: 0 | I164: 0 | J164: 0 | K164: 0 | L164: 0 | M164: 0 | N164: 0 | O164: 0 | P164: 0
C165: Paving/parking Lot Repl. | D165: 0 | E165: 0 | F165: 0 | G165: 0 | H165: 0 | I165: 0 | J165: 0 | K165: 0 | L165: 0 | M165: 0 | N165: 0 | O165: 0 | P165: 0
C166: Roof Replacement/Overlay | D166: 0 | E166: 0 | F166: 0 | G166: 0 | H166: 0 | I166: 0 | J166: 0 | K166: 0 | L166: 0 | M166: 0 | N166: 0 | O166: 0 | P166: 0
C167: Ext. Carpentry/Siding/Gutter | D167: 0 | E167: 0 | F167: 0 | G167: 0 | H167: 0 | I167: 0 | J167: 0 | K167: 0 | L167: 0 | M167: 0 | N167: 0 | O167: 0 | P167: 0
C168: Exterior Painting | D168: 0 | E168: 0 | F168: 0 | G168: 0 | H168: 0 | I168: 0 | J168: 0 | K168: 0 | L168: 0 | M168: 0 | N168: 0 | O168: 0 | P168: 0
C169: Concrete/Foundation Repairs | D169: 0 | E169: 0 | F169: 0 | G169: 0 | H169: 0 | I169: 0 | J169: 0 | K169: 0 | L169: 0 | M169: 0 | N169: 0 | O169: 0 | P169: 0
C170: Major Exterior Repairs | D170: 0 | E170: 0 | F170: 0 | G170: 0 | H170: 0 | I170: 0 | J170: 0 | K170: 0 | L170: 0 | M170: 0 | N170: 0 | O170: 0 | P170: 0
C171: Bricks/Stucco & Masonry | D171: 0 | E171: 0 | F171: 0 | G171: 0 | H171: 0 | I171: 0 | J171: 0 | K171: 0 | L171: 0 | M171: 0 | N171: 0 | O171: 0 | P171: 0
C172: Access Gate Replacement | D172: 0 | E172: 0 | F172: 0 | G172: 0 | H172: 0 | I172: 0 | J172: 0 | K172: 0 | L172: 0 | M172: 0 | N172: 0 | O172: 0 | P172: 0
C173: HVAC Replacement | D173: 0 | E173: 0 | F173: 0 | G173: 0 | H173: 0 | I173: 0 | J173: 0 | K173: 0 | L173: 0 | M173: 0 | N173: 0 | O173: 0 | P173: 0
C174: Plumbing Repalcement | D174: 0 | E174: 0 | F174: 0 | G174: 0 | H174: 0 | I174: 0 | J174: 0 | K174: 0 | L174: 0 | M174: 0 | N174: 0 | O174: 0 | P174: 0
C175: Electrical Replacement | D175: 0 | E175: 0 | F175: 0 | G175: 0 | H175: 0 | I175: 0 | J175: 0 | K175: 0 | L175: 0 | M175: 0 | N175: 0 | O175: 0 | P175: 0
C176: Pool & Equipment Expense | D176: 0 | E176: 0 | F176: 0 | G176: 0 | H176: 0 | I176: 0 | J176: 0 | K176: 0 | L176: 0 | M176: 0 | N176: 0 | O176: 0 | P176: 0
C177: Counter Resurfacing | D177: 0 | E177: 0 | F177: 0 | G177: 0 | H177: 0 | I177: 0 | J177: 0 | K177: 0 | L177: 0 | M177: 0 | N177: 0 | O177: 0 | P177: 0
C178: Down Units Repair Expense | D178: 0 | E178: 0 | F178: 0 | G178: 0 | H178: 0 | I178: 0 | J178: 0 | K178: 0 | L178: 0 | M178: 0 | N178: 0 | O178: 0 | P178: 0
C179: Other Non-Recurring Replacements | D179: 0 | E179: 0 | F179: 0 | G179: 0 | H179: 0 | I179: 0 | J179: 0 | K179: 0 | L179: 0 | M179: 0 | N179: 0 | O179: 0 | P179: 0
C180: Fire & Storm Damage | D180: 0 | E180: 0 | F180: 0 | G180: 0 | H180: 0 | I180: 0 | J180: 0 | K180: 0 | L180: 0 | M180: 0 | N180: 0 | O180: 0 | P180: 0
C181: Insurance Adjuster fee | D181: 0 | E181: 0 | F181: 0 | G181: 0 | H181: 0 | I181: 0 | J181: 0 | K181: 0 | L181: 0 | M181: 0 | N181: 0 | O181: 0 | P181: 0
C182: Computer Equipment Purchase | D182: 0 | E182: 0 | F182: 0 | G182: 0 | H182: 0 | I182: 0 | J182: 0 | K182: 0 | L182: 0 | M182: 0 | N182: 0 | O182: 0 | P182: 0
C183: Insured Loss Recovery | D183: 0 | E183: 0 | F183: 0 | G183: 0 | H183: 0 | I183: 0 | J183: 0 | K183: 0 | L183: 0 | M183: 0 | N183: 0 | O183: 0 | P183: 0
C184: Construction Supervision fee | D184: 0 | E184: 0 | F184: 0 | G184: 0 | H184: 0 | I184: 0 | J184: 0 | K184: 0 | L184: 0 | M184: 0 | N184: 0 | O184: 0 | P184: 0
C186: TOTAL NON-RECURRING REPLACEMENTS | D186: =SUM(D161:D184) -> 0 | E186: 0 | F186: 0 | G186: 0 | H186: 0 | I186: 0 | J186: 0 | K186: 0 | L186: 0 | M186: 0 | N186: 0 | O186: 0 | P186: =SUM(P161:P184) -> 0
C188: TOTAL PROPERTY REPLACEMENTS | D188: =D158+D186 -> 0 | E188: 0 | F188: 0 | G188: 0 | H188: 0 | I188: 0 | J188: 0 | K188: 0 | L188: 0 | M188: 0 | N188: 375.63 | O188: 0 | P188: =P158+P186 -> 375.63
C190: RESERVE ACTIVITY
C191: Reserve Payment | D191: 0 | E191: 0 | F191: 0 | G191: 0 | H191: 0 | I191: 0 | J191: 0 | K191: 0 | L191: 0 | M191: 0 | N191: 0 | O191: 0 | P191: =SUM(D191:O191) -> 0
C192: Reserve (Reimbursement) | D192: 0 | E192: 0 | F192: 0 | G192: 0 | H192: 0 | I192: 0 | J192: 0 | K192: 0 | L192: 0 | M192: 0 | N192: 0 | O192: 0 | P192: =SUM(D192:O192) -> 0
C194: NET RESERVE ACTIVITY | D194: =D191+D192 -> 0 | E194: 0 | F194: 0 | G194: 0 | H194: 0 | I194: 0 | J194: 0 | K194: 0 | L194: 0 | M194: 0 | N194: 0 | O194: 0 | P194: =P191+P192 -> 0
C196: AVAILABLE FOR DEBT | D196: =D150-D188-D194 -> 34584.02 | E196: 37741.38 | F196: 26265.9 | G196: 32289.75 | H196: 35272.43 | I196: 34176.86 | J196: 36437.43 | K196: 33004.35 | L196: 34393.15 | M196: 29019.99 | N196: 35575.25 | O196: 32244.89 | P196: =P150-P188-P194 -> 401005.4
C198: DEBT SERVICE
A199: 8080 | C199: Interest-First Mortgage | D199: 0 | E199: 0 | F199: 0 | G199: 0 | H199: 0 | I199: 0 | J199: 0 | K199: 0 | L199: 0 | M199: 0 | N199: 0 | O199: 0 | P199: =SUM(D199:O199) -> 0
C200: Interest-Second Mortgage | D200: 0 | E200: 0 | F200: 0 | G200: 0 | H200: 0 | I200: 0 | J200: 0 | K200: 0 | L200: 0 | M200: 0 | N200: 0 | O200: 0 | P200: =SUM(D200:O200) -> 0
C201: Interest-Other | D201: 0 | E201: 0 | F201: 0 | G201: 0 | H201: 0 | I201: 0 | J201: 0 | K201: 0 | L201: 0 | M201: 0 | N201: 0 | O201: 0 | P201: 0
C202: Principle--First Mortgage | D202: 0 | E202: 0 | F202: 0 | G202: 0 | H202: 0 | I202: 0 | J202: 0 | K202: 0 | L202: 0 | M202: 0 | N202: 0 | O202: 0 | P202: 0
C203: Principle-Second Mortgage | D203: 0 | E203: 0 | F203: 0 | G203: 0 | H203: 0 | I203: 0 | J203: 0 | K203: 0 | L203: 0 | M203: 0 | N203: 0 | O203: 0 | P203: 0
C204: Principle-Balloon | D204: 0 | E204: 0 | F204: 0 | G204: 0 | H204: 0 | I204: 0 | J204: 0 | K204: 0 | L204: 0 | M204: 0 | N204: 0 | O204: 0 | P204: 0
C205: MIP Payment | D205: 0 | E205: 0 | F205: 0 | G205: 0 | H205: 0 | I205: 0 | J205: 0 | K205: 0 | L205: 0 | M205: 0 | N205: 0 | O205: 0 | P205: 0
C206: Land Lease Payment | D206: 0 | E206: 0 | F206: 0 | G206: 0 | H206: 0 | I206: 0 | J206: 0 | K206: 0 | L206: 0 | M206: 0 | N206: 0 | O206: 0 | P206: 0
C208: TOTAL DEBT SERVICE | D208: =SUM(D199:D206) -> 0 | E208: 0 | F208: 0 | G208: 0 | H208: 0 | I208: 0 | J208: 0 | K208: 0 | L208: 0 | M208: 0 | N208: 0 | O208: 0 | P208: =SUM(P199:P206) -> 0
C210: NET CASH FLOW | D210: =D196-D208 -> 34584.02 | E210: 37741.38 | F210: 26265.9 | G210: 32289.75 | H210: 35272.43 | I210: 34176.86 | J210: 36437.43 | K210: 33004.35 | L210: 34393.15 | M210: 29019.99 | N210: 35575.25 | O210: 32244.89 | P210: =P196-P208 -> 401005.4

Sheet 2024
C1: Industrial Park
C2: Income and Expense
C3: 2024 P&L
A4: ACCOUNT | C4: DESCRIPTION | D4: 2024-01-04 | E4: 2024-02-05 | F4: 2024-03-06 | G4: 2024-04-07 | H4: 2024-05-08 | I4: 2024-06-09 | J4: 2024-07-10 | K4: 2024-08-11 | L4: 2024-09-01 | M4: 2024-10-01 | N4: 2024-11-01 | O4: 2024-12-01 | P4: Total
C5: INCOME
C7: REVENUE
C8: Total Rent Per Schedule | D8: 53460 | E8: 53460 | F8: 53460 | G8: 53460 | H8: 53460 | I8: 53460 | J8: 53460 | K8: 53460 | L8: 53460 | M8: 53460 | N8: 53460 | O8: 53460 | P8: =SUM(D8:O8) -> 641520
C9: Less: Loss to Lease in Force | D9: 0 | E9: 0 | F9: 0 | G9: 0 | H9: 0 | I9: 0 | J9: 0 | K9: 0 | L9: 0 | P9: =SUM(D9:O9) -> 0
C10: Leases in Excess Of Market | D10: 0 | E10: 0 | F10: 0 | G10: 0 | H10: 0 | I10: 0 | J10: 0 | K10: 0 | L10: 0 | P10: =SUM(D10:O10) -> 0
C12: GROSS POTENTIAL RENT | D12: =SUM(D8:D10) -> 53460 | E12: 53460 | F12: 53460 | G12: 53460 | H12: 53460 | I12: 53460 | J12: 53460 | K12: 53460 | L12: 53460 | M12: 53460 | N12: 53460 | O12: 53460 | P12: =SUM(P8:P10) -> 641520
C14: RENTAL LOSSES
C15: Vacancy Loss | D15: -3305.22 | E15: -4949.14 | F15: -5474.89 | G15: -3495.25 | H15: -4145 | I15: -5423.5 | J15: -4340 | K15: -10591.46 | L15: -11660 | M15: -11025 | N15: -10955 | O15: -9752.42 | P15: =SUM(D15:O15) -> -85116.88
C16: Model/Administrative Units | D16: 0 | E16: 0 | F16: 0 | G16: 0 | H16: 0 | I16: 0 | J16: 0 | K16: 0 | L16: 0 | M16: 0 | N16: 0 | O16: 0 | P16: =SUM(D16:O16) -> 0
C17: Out of Service/Down Units | D17: 0 | E17: 0 | F17: 0 | G17: 0 | H17: 0 | I17: 0 | J17: 0 | K17: 0 | L17: 0 | M17: 0 | N17: 0 | O17: 0 | P17: 0
C18: Employee Units | D18: 0 | E18: 0 | F18: 0 | G18: 0 | H18: 0 | I18: 0 | J18: 0 | K18: 0 | L18: 0 | M18: 0 | N18: 0 | O18: 0 | P18: 0
C19: Courtesy Officer Units | D19: 0 | E19: 0 | F19: 0 | G19: 0 | H19: 0 | I19: 0 | J19: 0 | K19: 0 | L19: 0 | M19: 0 | N19: 0 | O19: 0 | P19: 0
C20: Discount Given | D20: 0 | E20: 0 | F20: 0 | G20: 0 | H20: 0 | I20: 0 | J20: 0 | K20: 0 | L20: 0 | M20: 0 | N20: 0 | O20: 0 | P20: 0
C21: One-Time Special or Allowance | D21: 0 | E21: 0 | F21: 0 | G21: 0 | H21: 0 | I21: 0 | J21: 0 | K21: 0 | L21: 0 | M21: 0 | N21: 0 | O21: 0 | P21: 0
C22: Concessions | D22: 0 | E22: 0 | F22: 0 | G22: 0 | H22: 0 | I22: 0 | J22: 0 | K22: 0 | L22: 0 | M22: 0 | N22: 0 | O22: 0 | P22: 0
C23: Write-Off Uncollectible | D23: 0 | E23: 0 | F23: 0 | G23: 0 | H23: 0 | I23: 0 | J23: 0 | K23: 0 | L23: 0 | M23: 0 | N23: 0 | O23: 0 | P23: 0
C24: Miscellaneous Credit | D24: 0 | E24: 0 | F24: 0 | G24: 0 | H24: 0 | I24: 0 | J24: 0 | K24: 0 | L24: 0 | M24: 0 | N24: 0 | O24: 0 | P24: 0
C26: TOTAL RENTAL LOSSES | D26: =SUM(D15:D24) -> -3305.22 | E26: -4949.14 | F26: -5474.89 | G26: -3495.25 | H26: -4145 | I26: -5423.5 | J26: -4340 | K26: -10591.46 | L26: -11660 | M26: -11025 | N26: -10955 | O26: -9752.42 | P26: =SUM(P15:P24) -> -85116.88
C28: NET RENTAL REVENUE | D28: =D12+D26 -> 50154.78 | E28: 48510.86 | F28: 47985.11 | G28: 49964.75 | H28: 49315 | I28: =I12+I26 -> 48036.5 | J28: 49120 | K28: 42868.54 | L28: 41800 | M28: 42435 | N28: 42505 | O28: 43707.58 | P28: =P12+P26 -> 556403.12
C30: OTHER REVENUE
C31: Late Charges | D31: 0 | E31: 0 | F31: 0 | G31: 0 | H31: 0 | I31: 0 | J31: 0 | K31: 0 | L31: 0 | M31: 0 | N31: 0 | O31: 0 | P31: =SUM(D31:O31) -> 0
C32: Reletting Fee | D32: 0 | E32: 0 | F32: 0 | G32: 0 | H32: 0 | I32: 0 | J32: 0 | K32: 0 | L32: 0 | M32: 0 | N32: 0 | O32: 0 | P32: =SUM(D32:O32) -> 0
C33: NSF Fee Income | D33: 0 | E33: 0 | F33: 0 | G33: 0 | H33: 0 | I33: 0 | J33: 0 | K33: 0 | L33: 0 | M33: 0 | N33: 0 | O33: 0 | P33: 0
C34: Move out and Cleaning Repairs | D34: 0 | E34: 0 | F34: 0 | G34: 0 | H34: 0 | I34: 0 | J34: 0 | K34: 0 | L34: 0 | M34: 0 | N34: 0 | O34: 0 | P34: 0
C35: Damages Charged to Residents | D35: 0 | E35: 0 | F35: 0 | G35: 0 | H35: 0 | I35: 0 | J35: 0 | K35: 0 | L35: 0 | M35: 0 | N35: 0 | O35: 0 | P35: 0
C36: Keys, Locks, Lock Changes | D36: 0 | E36: 0 | F36: 0 | G36: 0 | H36: 0 | I36: 0 | J36: 0 | K36: 0 | L36: 0 | M36: 0 | N36: 0 | O36: 0 | P36: 0
C37: Lease Termination Fee Income | D37: 0 | E37: 0 | F37: 0 | G37: 0 | H37: 0 | I37: 0 | J37: 0 | K37: 0 | L37: 0 | M37: 0 | N37: 0 | O37: 0 | P37: 0
C38: Month To Month Fees | D38: 0 | E38: 0 | F38: 0 | G38: 0 | H38: 0 | I38: 0 | J38: 0 | K38: 0 | L38: 0 | M38: 0 | N38: 0 | O38: 0 | P38: 0
C39: Deposit Forfeitures | D39: 0 | E39: 0 | F39: 0 | G39: 0 | H39: 0 | I39: 0 | J39: 0 | K39: 0 | L39: 0 | M39: 0 | N39: 0 | O39: 0 | P39: 0
C40: Legal & Collection Fee Income | D40: 0 | E40: 0 | F40: 0 | G40: 0 | H40: 0 | I40: 0 | J40: 0 | K40: 0 | L40: 0 | M40: 0 | N40: 0 | O40: 0 | P40: 0
C41: Utility Reimbursements | D41: 0 | E41: 0 | F41: 0 | G41: 0 | H41: 0 | I41: 0 | J41: 0 | K41: 0 | L41: 0 | M41: 0 | N41: 0 | O41: 0 | P41: 0
C42: Application Fee Income | D42: 0 | E42: 0 | F42: 0 | G42: 0 | H42: 0 | I42: 0 | J42: 0 | K42: 0 | L42: 0 | M42: 0 | N42: 0 | O42: 0 | P42: 0
C43: Pet Fee Income | D43: 0 | E43: 0 | F43: 0 | G43: 0 | H43: 0 | I43: 0 | J43: 0 | K43: 0 | L43: 0 | M43: 0 | N43: 0 | O43: 0 | P43: 0
C44: Pet Fee Non-Refundable | D44: 0 | E44: 0 | F44: 0 | G44: 0 | H44: 0 | I44: 0 | J44: 0 | K44: 0 | L44: 0 | M44: 0 | N44: 0 | O44: 0 | P44: 0
C45: Referral Fee Income | D45: 0 | E45: 0 | F45: 0 | G45: 0 | H45: 0 | I45: 0 | J45: 0 | K45: 0 | L45: 0 | M45: 0 | N45: 0 | O45: 0 | P45: 0
C46: Laundry Room Income | D46: 0 | E46: 0 | F46: 0 | G46: 0 | H46: 0 | I46: 0 | J46: 0 | K46: 0 | L46: 0 | M46: 0 | N46: 0 | O46: 0 | P46: 0
C47: Washer/Dryer Rental Income | D47: 0 | E47: 0 | F47: 0 | G47: 0 | H47: 0 | I47: 0 | J47: 0 | K47: 0 | L47: 0 | M47: 0 | N47: 0 | O47: 0 | P47: 0
C48: Reserved/Covered Parking Fees | D48: 0 | E48: 0 | F48: 0 | G48: 0 | H48: 0 | I48: 0 | J48: 0 | K48: 0 | L48: 0 | M48: 0 | N48: 0 | O48: 0 | P48: 0
C49: Storage Space Rental | D49: 0 | E49: 0 | F49: 0 | G49: 0 | H49: 0 | I49: 0 | J49: 0 | K49: 0 | L49: 0 | M49: 0 | N49: 0 | O49: 0 | P49: 0
C50: Corporate Suite Rental | D50: 0 | E50: 0 | F50: 0 | G50: 0 | H50: 0 | I50: 0 | J50: 0 | K50: 0 | L50: 0 | M50: 0 | N50: 0 | O50: 0 | P50: 0
C51: Miscellaneous Income | D51: 761 | E51: 2995.05 | F51: 398.7 | G51: 647.91 | H51: 10653.61 | I51: 428.5 | J51: 398.4 | K51: 417.36 | L51: 1513.25 | M51: 670 | N51: 488.2 | O51: 466.35 | P51: 19838.33
C53: TOTAL OTHER REVENUE | D53: =SUM(D31:D51) -> 761 | E53: 2995.05 | F53: 398.7 | G53: 647.91 | H53: 10653.61 | I53: 428.5 | J53: 398.4 | K53: 417.36 | L53: 1513.25 | M53: 670 | N53: 488.2 | O53: 466.35 | P53: =SUM(P31:P51) -> 19838.33
C55: TOTAL INCOME | D55: =D28+D53 -> 50915.78 | E55: 51505.91 | F55: 48383.81 | G55: 50612.66 | H55: 59968.61 | I55: 48465 | J55: 49518.4 | K55: 43285.9 | L55: 43313.25 | M55: 43105 | N55: 42993.2 | O55: 44173.93 | P55: 576241.45
C57: OPERATING EXPENSES
C59: ADMINISTRATIVE EXPENSE
A60: 5120 | C60: Credit Reports | D60: 0 | E60: 0 | F60: 0 | G60: 0 | H60: 0 | I60: 0 | J60: 0 | K60: 0 | L60: 0 | M60: 0 | N60: 0 | O60: 0 | P60: =SUM(D60:O60) -> 0
A61: 5130 | C61: Dues and Subscriptions | D61: 0 | E61: 0 | F61: 0 | G61: 0 | H61: 0 | I61: 0 | J61: 0 | K61: 0 | L61: 0 | M61: 0 | N61: 0 | O61: 0 | P61: =SUM(D61:O61) -> 0
A62: 5140 | C62: Telephone and Yellow Pages | D62: 0 | E62: 0 | F62: 0 | G62: 0 | H62: 0 | I62: 0 | J62: 0 | K62: 0 | L62: 0 | M62: 0 | N62: 0 | O62: 0 | P62: 0
A63: 5150 | C63: Advertising | D63: 0 | E63: 319 | F63: 319 | G63: 319 | H63: 319 | I63: 319 | J63: 319 | K63: 319 | L63: 319 | M63: 319 | N63: 319 | O63: 319 | P63: 3509
A64: 5155 | C64: Cable Provider | D64: 0 | E64: 0 | F64: 0 | G64: 0 | H64: 0 | I64: 0 | J64: 0 | K64: 0 | L64: 0 | M64: 0 | N64: 0 | O64: 0 | P64: 0
A65: 5160 | C65: Office Supplies and Equipment | D65: 0 | E65: 0 | F65: 0 | G65: 0 | H65: 0 | I65: 0 | J65: 0 | K65: 0 | L65: 0 | M65: 0 | N65: 0 | O65: 0 | P65: 0
A66: 5170 | C66: Tenant Screening | D66: 0 | E66: 0 | F66: 0 | G66: 0 | H66: 0 | I66: 0 | J66: 0 | K66: 0 | L66: 0 | M66: 0 | N66: 0 | O66: 0 | P66: 0
A67: 5180 | C67: Postage, Courier & Freight | D67: 0 | E67: 0 | F67: 0 | G67: 0 | H67: 0 | I67: 0 | J67: 0 | K67: 0 | L67: 0 | M67: 0 | N67: 0 | O67: 0 | P67: 0
A68: 5190 | C68: Administrative Expense | D68: 0 | E68: 0 | F68: 0 | G68: 0 | H68: 0 | I68: 0 | J68: 0 | K68: 0 | L68: 0 | M68: 0 | N68: 0 | O68: 0 | P68: 0
A69: 5600 | C69: Mileage | D69: 0 | E69: 0 | F69: 0 | G69: 0 | H69: 0 | I69: 0 | J69: 0 | K69: 0 | L69: 0 | M69: 0 | N69: 0 | O69: 0 | P69: 0
A70: 5620 | C70: Accounting Services | D70: 0 | E70: 0 | F70: 0 | G70: 0 | H70: 0 | I70: 0 | J70: 0 | K70: 0 | L70: 0 | M70: 0 | N70: 0 | O70: 0 | P70: 0
A71: 5630 | C71: Legal Services | D71: 0 | E71: 0 | F71: 0 | G71: 0 | H71: 0 | I71: 0 | J71: 0 | K71: 0 | L71: 0 | M71: 0 | N71: 0 | O71: 0 | P71: 0
A72: 5635 | C72: Office Supplies | D72: 0 | E72: 0 | F72: 0 | G72: 0 | H72: 0 | I72: 0 | J72: 0 | K72: 0 | L72: 0 | M72: 0 | N72: 0 | O72: 0 | P72: 0
A73: 5640 | C73: Miscellaneous | D73: 0 | E73: 0 | F73: 0 | G73: 0 | H73: 0 | I73: 0 | J73: 0 | K73: 0 | L73: 0 | M73: 0 | N73: 0 | O73: 0 | P73: 0
C75: TOTAL ADMINISTRATIVE | D75: =SUM(D60:D73) -> 0 | E75: 319 | F75: 319 | G75: =SUM(G60:G74) -> 319 | H75: 319 | I75: 319 | J75: 319 | K75: 319 | L75: 319 | M75: 319 | N75: 319 | O75: 319 | P75: =SUM(D75:O75) -> 3509
C77: MANAGEMENT FEES
A78: 5610 | C78: Management Fees | D78: 0 | E78: 0 | F78: 0 | G78: 0 | H78: 0 | I78: 0 | J78: 0 | K78: 0 | L78: 0 | M78: 0 | N78: 0 | O78: 0 | P78: =SUM(D78:O78) -> 0
C79: Commission Placement Fee | D79: 0 | E79: 0 | F79: 0 | G79: 0 | H79: 0 | I79: 0 | J79: 0 | K79: 0 | L79: 0 | M79: 0 | N79: 0 | O79: 0 | P79: =SUM(D79:O79) -> 0
C81: TOTAL MANAGEMENT FEES | D81: =D78+D79 -> 0 | E81: 0 | F81: 0 | G81: 0 | H81: 0 | I81: 0 | J81: 0 | K81: 0 | L81: 0 | M81: 0 | N81: 0 | O81: 0 | P81: =SUM(D81:O81) -> 0
C83: SALARY EXPENSE
A84: 6010 | C84: Payroll-Office & Maintenance | D84: 0 | E84: 0 | F84: 0 | G84: 0 | H84: 0 | I84: 0 | J84: 0 | K84: 0 | L84: 0 | M84: 0 | N84: 0 | O84: 0 | P84: =SUM(D84:O84) -> 0
A85: 6020 | C85: Payroll-Clerical & Office | D85: 0 | E85: 0 | F85: 0 | G85: 0 | H85: 0 | I85: 0 | J85: 0 | K85: 0 | L85: 0 | M85: 0 | N85: 0 | O85: 0 | P85: =SUM(D85:O85) -> 0
A86: 6030 | C86: Payroll-Leasing | D86: 0 | E86: 0 | F86: 0 | G86: 0 | H86: 0 | I86: 0 | J86: 0 | K86: 0 | L86: 0 | M86: 0 | N86: 0 | O86: 0 | P86: 0
A87: 6040 | C87: Payroll-Maintenance | D87: 0 | E87: 0 | F87: 0 | G87: 0 | H87: 0 | I87: 0 | J87: 0 | K87: 0 | L87: 0 | M87: 0 | N87: 0 | O87: 0 | P87: 0
C88: Employer FICA-Total Payroll Tax | D88: 0 | E88: 0 | F88: 0 | G88: 0 | H88: 0 | I88: 0 | J88: 0 | K88: 0 | L88: 0 | M88: 0 | N88: 0 | O88: 0 | P88: 0
C89: Employer FUTA | D89: 0 | E89: 0 | F89: 0 | G89: 0 | H89: 0 | I89: 0 | J89: 0 | K89: 0 | L89: 0 | M89: 0 | N89: 0 | O89: 0 | P89: 0
C90: Employer SUTA | D90: 0 | E90: 0 | F90: 0 | G90: 0 | H90: 0 | I90: 0 | J90: 0 | K90: 0 | L90: 0 | M90: 0 | N90: 0 | O90: 0 | P90: 0
C91: Workers Compensation | D91: 0 | E91: 0 | F91: 0 | G91: 0 | H91: 0 | I91: 0 | J91: 0 | K91: 0 | L91: 0 | M91: 0 | N91: 0 | O91: 0 | P91: 0
A92: 6210 | C92: Group Health Insurance | D92: 0 | E92: 0 | F92: 0 | G92: 0 | H92: 0 | I92: 0 | J92: 0 | K92: 0 | L92: 0 | M92: 0 | N92: 0 | O92: 0 | P92: 0
C93: Other Employee Benefits | D93: 0 | E93: 0 | F93: 0 | G93: 0 | H93: 0 | I93: 0 | J93: 0 | K93: 0 | L93: 0 | M93: 0 | N93: 0 | O93: 0 | P93: 0
C95: TOTAL SALARY | D95: =SUM(D84:D93) -> 0 | E95: 0 | F95: 0 | G95: 0 | H95: 0 | I95: 0 | J95: 0 | K95: 0 | L95: 0 | M95: 0 | N95: 0 | O95: 0 | P95: =SUM(D95:O95) -> 0
C97: REPAIRS & MAINTENANCE
A98: 7010 | C98: Equipment/Repairs | D98: 0 | E98: 0 | F98: 0 | G98: 0 | H98: 0 | I98: 0 | J98: 0 | K98: 0 | L98: 0 | M98: 0 | N98: 0 | O98: 0 | P98: =SUM(D98:O98) -> 0
A99: 7020 | C99: Spare Parts | D99: 0 | E99: 0 | F99: 0 | G99: 0 | H99: 0 | I99: 0 | J99: 0 | K99: 0 | L99: 0 | M99: 0 | N99: 0 | O99: 0 | P99: =SUM(D99:O99) -> 0
A100: 7100 | C100: HVAC | D100: 0 | E100: 0 | F100: 825 | G100: 0 | H100: 0 | I100: 0 | J100: 0 | K100: 0 | L100: 0 | M100: 0 | N100: 0 | O100: 0 | P100: 825
A101: 7110 | C101: Contract Repair Services | D101: 0 | E101: 0 | F101: 0 | G101: 0 | H101: 0 | I101: 0 | J101: 0 | K101: 0 | L101: 0 | M101: 0 | N101: 0 | O101: 0 | P101: 0
A102: 7120 | C102: Pool Repairs and Supplies | D102: 0 | E102: 0 | F102: 0 | G102: 0 | H102: 0 | I102: 0 | J102: 0 | K102: 0 | L102: 0 | M102: 0 | N102: 0 | O102: 0 | P102: 0
A103: 7130 | C103: Paint & Painting Services | D103: 0 | E103: 0 | F103: 0 | G103: 0 | H103: 0 | I103: 0 | J103: 0 | K103: 0 | L103: 0 | M103: 0 | N103: 0 | O103: 0 | P103: 0
A104: 7135 | C104: Maintenance Supplies | D104: 0 | E104: 0 | F104: 0 | G104: 0 | H104: 0 | I104: 0 | J104: 0 | K104: 0 | L104: 0 | M104: 0 | N104: 0 | O104: 0 | P104: 0
A105: 7140 | C105: Plumbing Supplies & Services | D105: 0 | E105: 0 | F105: 0 | G105: 0 | H105: 0 | I105: 0 | J105: 0 | K105: 0 | L105: 0 | M105: 0 | N105: 0 | O105: 0 | P105: 0
A106: 7145 | C106: Cleaning Supplies | D106: 0 | E106: 0 | F106: 0 | G106: 0 | H106: 0 | I106: 0 | J106: 0 | K106: 0 | L106: 0 | M106: 0 | N106: 0 | O106: 0 | P106: 0
A107: 7150 | C107: Electrical Supplies and Services | D107: 0 | E107: 0 | F107: 0 | G107: 0 | H107: 0 | I107: 0 | J107: 0 | K107: 0 | L107: 0 | M107: 0 | N107: 0 | O107: 0 | P107: 0
A108: 7155 | C108: Hardware/Carpentry | D108: 0 | E108: 0 | F108: 0 | G108: 0 | H108: 0 | I108: 0 | J108: 0 | K108: 0 | L108: 0 | M108: 0 | N108: 0 | O108: 0 | P108: 0
A109: 7160 | C109: Make Ready | D109: 70 | E109: 0 | F109: 110 | G109: 0 | H109: 0 | I109: 0 | J109: 0 | K109: 0 | L109: 0 | M109: 0 | N109: 0 | O109: 0 | P109: 180
A110: 7170 | C110: Roof Repairs | D110: 0 | E110: 0 | F110: 0 | G110: 0 | H110: 0 | I110: 0 | J110: 0 | K110: 0 | L110: 0 | M110: 0 | N110: 0 | O110: 0 | P110: 0
A111: 7180 | C111: Building Exterior Repairs | D111: 0 | E111: 0 | F111: 0 | G111: 0 | H111: 0 | I111: 0 | J111: 0 | K111: 0 | L111: 0 | M111: 0 | N111: 0 | O111: 0 | P111: 0
A112: 7190 | C112: Window & Door Repairs | D112: 0 | E112: 0 | F112: 0 | G112: 0 | H112: 0 | I112: 0 | J112: 0 | K112: 0 | L112: 0 | M112: 0 | N112: 0 | O112: 0 | P112: 0
A113: 7200 | C113: Keys and Locks | D113: 0 | E113: 0 | F113: 0 | G113: 0 | H113: 0 | I113: 0 | J113: 0 | K113: 0 | L113: 0 | M113: 0 | N113: 0 | O113: 0 | P113: 0
A114: 7210 | C114: Carpet & Floor Cleaning & Repair | D114: 135.31 | E114: 0 | F114: 0 | G114: 135.38 | H114: 135.38 | I114: 135.38 | J114: 135.38 | K114: 135.38 | L114: 135.38 | M114: 135.38 | N114: 135.38 | O114: 135.38 | P114: 1353.73
A115: 7220 | C115: Floor & Carpet Replacement | D115: 0 | E115: 0 | F115: 0 | G115: 0 | H115: 0 | I115: 0 | J115: 0 | K115: 0 | L115: 0 | M115: 0 | N115: 0 | O115: 0 | P115: 0
A116: 7350 | C116: Miscellaneous | D116: 0 | E116: 0 | F116: 35 | G116: 117 | H116: 117 | I116: 117 | J116: 117 | K116: 117 | L116: 117 | M116: 117 | N116: 117 | O116: 117 | P116: 1088
C118: TOTAL REPAIRS & MAINTENANCE | D118: =SUM(D98:D116) -> 205.31 | E118: 0 | F118: 970 | G118: 252.38 | H118: 252.38 | I118: 252.38 | J118: 252.38 | K118: 252.38 | L118: 252.38 | M118: 252.38 | N118: 252.38 | O118: 252.38 | P118: =SUM(D118:O118) -> 3446.73
C120: UTILITIES
A121: 7500 | C121: Utilities-Gas | D121: 0 | E121: 0 | F121: 0 | G121: 0 | H121: 0 | I121: 0 | J121: 0 | K121: 0 | L121: 0 | M121: 0 | N121: 0 | O121: 0 | P121: =SUM(D121:O121) -> 0
A122: 7510 | C122: Utilities-Electricity | D122: 535.6 | E122: 339.37 | F122: 408.9 | G122: 222.42 | H122: 227.26 | I122: 203.21 | J122: 322.24 | K122: 374.27 | L122: 739.29 | M122: 717.09 | N122: 502.89 | O122: 315.79 | P122: =SUM(D122:O122) -> 4908.33
A123: 7520 | C123: Utilities-Water | D123: 867.94 | E123: 1015.87 | F123: 784.83 | G123: 769.04 | H123: 979.1 | I123: 1381.1 | J123: 1050.15 | K123: 747.69 | L123: 669.66 | M123: 831.7 | N123: 773.15 | O123: 758.58 | P123: 10628.81
A124: 7530 | C124: Utilities-Trash | D124: 466.72 | E124: 466.72 | F124: 466.72 | G124: 491.72 | H124: 491.72 | I124: 466.72 | J124: 466.72 | K124: 466.72 | L124: 466.72 | M124: 466.72 | N124: 470.45 | O124: 473.72 | P124: 5661.37
A125: 7540 | C125: Utilities-Sewer | D125: 0 | E125: 0 | F125: 0 | G125: 0 | H125: 0 | I125: 0 | J125: 0 | K125: 0 | L125: 0 | P125: 0
C127: TOTAL UTILITIES | D127: =SUM(D121:D125) -> 1870.26 | E127: =SUM(E121:E125) -> 1821.96 | F127: =SUM(F121:F125) -> 1660.45 | G127: 1483.18 | H127: 1698.08 | I127: 2051.03 | J127: 1839.11 | K127: =SUM(K121:K125) -> 1588.68 | L127: =SUM(L121:L125) -> 1875.67 | M127: =SUM(M121:M125) -> 2015.51 | N127: 1746.49 | O127: 1548.09 | P127: =SUM(D127:O127) -> 21198.51
C129: CONTRACT SERVICES
A130: 7610 | C130: Contract-Cable | D130: 2403.35 | E130: 2403.35 | F130: 2403.35 | G130: 2403.35 | H130: 2403.35 | I130: 2403.35 | J130: 2403.35 | K130: 2403.35 | L130: 2403.35 | M130: 2403.35 | N130: 2403.35 | O130: 2403.35 | P130: =SUM(D130:O130) -> 28840.2
A131: 7620 | C131: Contract-Pest Control | D131: 0 | E131: 506.62 | F131: 0 | G131: 0 | H131: 0 | I131: 0 | J131: 253.31 | K131: 0 | L131: 0 | M131: 0 | N131: 0 | O131: 0 | P131: =SUM(D131:O131) -> 759.93
A132: 7630 | C132: Contract-Landscape/Yard Care | D132: 120 | E132: 0 | F132: 110 | G132: 160 | H132: 160 | I132: 360 | J132: 160 | K132: 1070 | L132: 230 | M132: 160 | N132: 160 | O132: 160 | P132: 2850
C133: Contract-Security Patrol | D133: 0 | E133: 0 | F133: 0 | G133: 0 | H133: 0 | I133: 0 | J133: 0 | K133: 0 | L133: 0 | M133: 0 | N133: 0 | O133: 0 | P133: 0
A134: 7650 | C134: Contract-Cleaning | D134: 0 | E134: 0 | F134: 0 | G134: 0 | H134: 0 | I134: 0 | J134: 0 | K134: 0 | L134: 0 | M134: 0 | N134: 0 | O134: 0 | P134: 0
C135: Contract Services | D135: 0 | E135: 325 | F135: 0 | G135: 485 | H135: 660 | I135: 1955 | J135: 1110.94 | K135: 480 | L135: 258.48 | M135: 411.19 | N135: 265 | O135: 0 | P135: 5950.61
C137: TOTAL CONTRACT SERVICES | D137: =SUM(D130:D135) -> 2523.35 | E137: 3234.97 | F137: 2513.35 | G137: 3048.35 | H137: 3223.35 | I137: 4718.35 | J137: 3927.6 | K137: 3953.35 | L137: 2891.83 | M137: 2974.54 | N137: 2828.35 | O137: 2563.35 | P137: =SUM(D137:O137) -> 38400.74
C139: TAXES & INSURANCE
A140: 8010 | C140: Ad Valorem (Property ) Taxes | D140: 8828.08 | E140: 8828.08 | F140: 8828.08 | G140: 8828.08 | H140: 8828.08 | I140: 8828.08 | J140: 8828.08 | K140: 8828.08 | L140: 8828.08 | M140: 8828.08 | N140: 8828.08 | O140: 8828.08 | P140: =SUM(D140:O140) -> 105936.96
C141: Fees & Duties | D141: 0 | E141: 0 | F141: 0 | G141: 0 | H141: 0 | I141: 0 | J141: 0 | K141: 0 | L141: 0 | M141: 0 | N141: 0 | O141: 0 | P141: =SUM(D141:O141) -> 0
C142: Other Taxes | D142: 0 | E142: 0 | F142: 0 | G142: 0 | H142: 0 | I142: 0 | J142: 0 | K142: 0 | L142: 0 | M142: 0 | N142: 0 | O142: 0 | P142: 0
A143: 8120 | C143: Insurance | D143: 2248.98 | E143: 2248.98 | F143: 2248.98 | G143: 2248.98 | H143: 2248.98 | I143: 2248.98 | J143: 2248.98 | K143: 2248.98 | L143: 2248.98 | M143: 2248.98 | N143: 2248.98 | O143: 2248.98 | P143: 26987.76
C145: TOTAL TAXES & INSURANCE | D145: =SUM(D140:D143) -> 11077.06 | E145: 11077.06 | F145: 11077.06 | G145: 11077.06 | H145: 11077.06 | I145: =SUM(I140:I144) -> 11077.06 | J145: 11077.06 | K145: 11077.06 | L145: 11077.06 | M145: 11077.06 | N145: 11077.06 | O145: 11077.06 | P145: =SUM(D145:O145) -> 132924.72
C148: TOTAL OPERATING EXPENSE | D148: =D75+D81+D84+D118+D127+D137+D145 -> 15675.98 | E148: 16452.99 | F148: 16539.86 | G148: 16179.97 | H148: 16569.87 | I148: 18417.82 | J148: 17415.15 | K148: 17190.47 | L148: 16415.94 | M148: 16638.49 | N148: 16223.28 | O148: 15759.88 | P148: =SUM(D148:O148) -> 199479.7
C150: NET OPERATING INCOME | D150: =D55-D148 -> 35239.8 | E150: 35052.92 | F150: 31843.95 | G150: 34432.69 | H150: 43398.74 | I150: 30047.18 | J150: 32103.25 | K150: 26095.43 | L150: 26897.31 | M150: 26466.51 | N150: 26769.92 | O150: 28414.05 | P150: =P55-P148 -> 376761.75
C152: RECURRING REPLACEMENTS
C153: Flooring Replacement | D153: 0 | E153: 0 | F153: 0 | G153: 0 | H153: 0 | I153: 0 | J153: 0 | K153: 0 | L153: 0 | M153: 0 | N153: 0 | O153: 0 | P153: =SUM(D153:O153) -> 0
C154: Mini-Blind Replacement | D154: 0 | E154: 0 | F154: 0 | G154: 0 | H154: 0 | I154: 0 | J154: 0 | K154: 0 | L154: 0 | M154: 0 | N154: 0 | O154: 0 | P154: =SUM(D154:O154) -> 0
C155: Appliance Replacement | D155: 0 | E155: 0 | F155: 0 | G155: 0 | H155: 0 | I155: 0 | J155: 0 | K155: 0 | L155: 0 | M155: 0 | N155: 0 | O155: 0 | P155: 0
C156: Individual Unit Water Heater | D156: 0 | E156: 0 | F156: 0 | G156: 0 | H156: 0 | I156: 0 | J156: 0 | K156: 0 | L156: 0 | M156: 0 | N156: 0 | O156: 0 | P156: 0
C158: TOTAL RECURRING REPLACEMENTS | D158: =SUM(D153:D156) -> 0 | E158: =SUM(E153:E157) -> 0 | F158: 0 | G158: 0 | H158: 0 | I158: 0 | J158: 0 | K158: 0 | L158: 0 | M158: 0 | N158: 0 | O158: 0 | P158: =SUM(P153:P156) -> 0
C160: NON-RECURRING REPLACMENTS
C161: Various Contractors | D161: 0 | E161: 0 | F161: 0 | G161: 0 | H161: 0 | I161: 0 | J161: 0 | K161: 0 | L161: 0 | M161: 0 | N161: 0 | O161: 0 | P161: =SUM(D161:O161) -> 0
C162: Playground/Recreational Eqp. | D162: 0 | E162: 0 | F162: 0 | G162: 0 | H162: 0 | I162: 0 | J162: 0 | K162: 0 | L162: 0 | M162: 0 | N162: 0 | O162: 0 | P162: =SUM(D162:O162) -> 0
C163: Monument/Directional Signage | D163: 0 | E163: 0 | F163: 0 | G163: 0 | H163: 0 | I163: 0 | J163: 0 | K163: 0 | L163: 0 | M163: 0 | N163: 0 | O163: 0 | P163: 0
C164: Lawns/Trees/Shrubs Repl. | D164: 0 | E164: 0 | F164: 0 | G164: 0 | H164: 0 | I164: 0 | J164: 0 | K164: 0 | L164: 0 | M164: 0 | N164: 0 | O164: 0 | P164: 0
C165: Paving/parking Lot Repl. | D165: 0 | E165: 0 | F165: 0 | G165: 0 | H165: 0 | I165: 0 | J165: 0 | K165: 0 | L165: 0 | M165: 0 | N165: 0 | O165: 0 | P165: 0
C166: Roof Replacement/Overlay | D166: 0 | E166: 0 | F166: 0 | G166: 0 | H166: 0 | I166: 0 | J166: 0 | K166: 0 | L166: 0 | M166: 0 | N166: 0 | O166: 0 | P166: 0
C167: Ext. Carpentry/Siding/Gutter | D167: 0 | E167: 0 | F167: 0 | G167: 0 | H167: 0 | I167: 0 | J167: 0 | K167: 0 | L167: 0 | M167: 0 | N167: 0 | O167: 0 | P167: 0
C168: Exterior Painting | D168: 0 | E168: 0 | F168: 0 | G168: 0 | H168: 0 | I168: 0 | J168: 0 | K168: 0 | L168: 0 | M168: 0 | N168: 0 | O168: 0 | P168: 0
C169: Concrete/Foundation Repairs | D169: 0 | E169: 0 | F169: 0 | G169: 0 | H169: 0 | I169: 0 | J169: 0 | K169: 0 | L169: 0 | M169: 0 | N169: 0 | O169: 0 | P169: 0
C170: Major Exterior Repairs | D170: 0 | E170: 0 | F170: 0 | G170: 0 | H170: 0 | I170: 0 | J170: 0 | K170: 0 | L170: 0 | M170: 0 | N170: 0 | O170: 0 | P170: 0
C171: Bricks/Stucco & Masonry | D171: 0 | E171: 0 | F171: 0 | G171: 0 | H171: 0 | I171: 0 | J171: 0 | K171: 0 | L171: 0 | M171: 0 | N171: 0 | O171: 0 | P171: 0
C172: Access Gate Replacement | D172: 0 | E172: 0 | F172: 0 | G172: 0 | H172: 0 | I172: 0 | J172: 0 | K172: 0 | L172: 0 | M172: 0 | N172: 0 | O172: 0 | P172: 0
C173: HVAC Replacement | D173: 0 | E173: 0 | F173: 0 | G173: 0 | H173: 0 | I173: 0 | J173: 0 | K173: 0 | L173: 0 | M173: 0 | N173: 0 | O173: 0 | P173: 0
C174: Plumbing Repalcement | D174: 0 | E174: 0 | F174: 0 | G174: 0 | H174: 0 | I174: 0 | J174: 0 | K174: 0 | L174: 0 | M174: 0 | N174: 0 | O174: 0 | P174: 0
C175: Electrical Replacement | D175: 0 | E175: 0 | F175: 0 | G175: 0 | H175: 0 | I175: 0 | J175: 0 | K175: 0 | L175: 0 | M175: 0 | N175: 0 | O175: 0 | P175: 0
C176: Pool & Equipment Expense | D176: 0 | E176: 0 | F176: 0 | G176: 0 | H176: 0 | I176: 0 | J176: 0 | K176: 0 | L176: 0 | M176: 0 | N176: 0 | O176: 0 | P176: 0
C177: Counter Resurfacing | D177: 0 | E177: 0 | F177: 0 | G177: 0 | H177: 0 | I177: 0 | J177: 0 | K177: 0 | L177: 0 | M177: 0 | N177: 0 | O177: 0 | P177: 0
C178: Down Units Repair Expense | D178: 0 | E178: 0 | F178: 0 | G178: 0 | H178: 0 | I178: 0 | J178: 0 | K178: 0 | L178: 0 | M178: 0 | N178: 0 | O178: 0 | P178: 0
C179: Other Non-Recurring Replacements | D179: 0 | E179: 0 | F179: 0 | G179: 0 | H179: 0 | I179: 0 | J179: 0 | K179: 0 | L179: 0 | M179: 0 | N179: 0 | O179: 0 | P179: 0
C180: Fire & Storm Damage | D180: 0 | E180: 0 | F180: 0 | G180: 0 | H180: 0 | I180: 0 | J180: 0 | K180: 0 | L180: 0 | M180: 0 | N180: 0 | O180: 0 | P180: 0
C181: Insurance Adjuster fee | D181: 0 | E181: 0 | F181: 0 | G181: 0 | H181: 0 | I181: 0 | J181: 0 | K181: 0 | L181: 0 | M181: 0 | N181: 0 | O181: 0 | P181: 0
C182: Computer Equipment Purchase | D182: 0 | E182: 0 | F182: 0 | G182: 0 | H182: 0 | I182: 0 | J182: 0 | K182: 0 | L182: 0 | M182: 0 | N182: 0 | O182: 0 | P182: 0
C183: Insured Loss Recovery | D183: 0 | E183: 0 | F183: 0 | G183: 0 | H183: 0 | I183: 0 | J183: 0 | K183: 0 | L183: 0 | M183: 0 | N183: 0 | O183: 0 | P183: 0
C184: Construction Supervision fee | D184: 0 | E184: 0 | F184: 0 | G184: 0 | H184: 0 | I184: 0 | J184: 0 | K184: 0 | L184: 0 | M184: 0 | N184: 0 | O184: 0 | P184: 0
C186: TOTAL NON-RECURRING REPLACEMENTS | D186: =SUM(D161:D184) -> 0 | E186: 0 | F186: 0 | G186: 0 | H186: 0 | I186: 0 | J186: 0 | K186: 0 | L186: 0 | M186: 0 | N186: 0 | O186: 0 | P186: =SUM(P161:P184) -> 0
C188: TOTAL PROPERTY REPLACEMENTS | D188: =D158+D186 -> 0 | E188: 0 | F188: 0 | G188: 0 | H188: 0 | I188: 0 | J188: 0 | K188: 0 | L188: 0 | M188: 0 | N188: 0 | O188: 0 | P188: =P158+P186 -> 0
C190: RESERVE ACTIVITY
C191: Reserve Payment | D191: 0 | E191: 0 | F191: 0 | G191: 0 | H191: 0 | I191: 0 | J191: 0 | K191: 0 | L191: 0 | M191: 0 | N191: 0 | O191: 0 | P191: =SUM(D191:O191) -> 0
C192: Reserve (Reimbursement) | D192: 0 | E192: 0 | F192: 0 | G192: 0 | H192: 0 | I192: 0 | J192: 0 | K192: 0 | L192: 0 | M192: 0 | N192: 0 | O192: 0 | P192: =SUM(D192:O192) -> 0
C194: NET RESERVE ACTIVITY | D194: =D191+D192 -> 0 | E194: 0 | F194: 0 | G194: 0 | H194: 0 | I194: 0 | J194: 0 | K194: 0 | L194: 0 | M194: 0 | N194: 0 | O194: 0 | P194: =P191+P192 -> 0
C196: AVAILABLE FOR DEBT | D196: =D150-D188-D194 -> 35239.8 | E196: 35052.92 | F196: 31843.95 | G196: 34432.69 | H196: 43398.74 | I196: 30047.18 | J196: 32103.25 | K196: 26095.43 | L196: 26897.31 | M196: 26466.51 | N196: 26769.92 | O196: 28414.05 | P196: =P150-P188-P194 -> 376761.75
C198: DEBT SERVICE
A199: 8080 | C199: Interest-First Mortgage | D199: 0 | E199: 0 | F199: 0 | G199: 0 | H199: 0 | I199: 0 | J199: 0 | K199: 0 | L199: 0 | M199: 0 | N199: 0 | O199: 0 | P199: =SUM(D199:O199) -> 0
C200: Interest-Second Mortgage | D200: 0 | E200: 0 | F200: 0 | G200: 0 | H200: 0 | I200: 0 | J200: 0 | K200: 0 | L200: 0 | M200: 0 | N200: 0 | O200: 0 | P200: =SUM(D200:O200) -> 0
C201: Interest-Other | D201: 0 | E201: 0 | F201: 0 | G201: 0 | H201: 0 | I201: 0 | J201: 0 | K201: 0 | L201: 0 | M201: 0 | N201: 0 | O201: 0 | P201: 0
C202: Principle--First Mortgage | D202: 0 | E202: 0 | F202: 0 | G202: 0 | H202: 0 | I202: 0 | J202: 0 | K202: 0 | L202: 0 | M202: 0 | N202: 0 | O202: 0 | P202: 0
C203: Principle-Second Mortgage | D203: 0 | E203: 0 | F203: 0 | G203: 0 | H203: 0 | I203: 0 | J203: 0 | K203: 0 | L203: 0 | M203: 0 | N203: 0 | O203: 0 | P203: 0
C204: Principle-Balloon | D204: 0 | E204: 0 | F204: 0 | G204: 0 | H204: 0 | I204: 0 | J204: 0 | K204: 0 | L204: 0 | M204: 0 | N204: 0 | O204: 0 | P204: 0
C205: MIP Payment | D205: 0 | E205: 0 | F205: 0 | G205: 0 | H205: 0 | I205: 0 | J205: 0 | K205: 0 | L205: 0 | M205: 0 | N205: 0 | O205: 0 | P205: 0
C206: Land Lease Payment | D206: 0 | E206: 0 | F206: 0 | G206: 0 | H206: 0 | I206: 0 | J206: 0 | K206: 0 | L206: 0 | M206: 0 | N206: 0 | O206: 0 | P206: 0
C208: TOTAL DEBT SERVICE | D208: =SUM(D199:D206) -> 0 | E208: 0 | F208: 0 | G208: 0 | H208: 0 | I208: 0 | J208: 0 | K208: 0 | L208: 0 | M208: 0 | N208: 0 | O208: 0 | P208: =SUM(P199:P206) -> 0
C210: NET CASH FLOW | D210: =D196-D208 -> 35239.8 | E210: 35052.92 | F210: 31843.95 | G210: 34432.69 | H210: 43398.74 | I210: 30047.18 | J210: 32103.25 | K210: 26095.43 | L210: 26897.31 | M210: 26466.51 | N210: 26769.92 | O210: 28414.05 | P210: =P196-P208 -> 376761.75

Sheet 2025
C1: Industrial Park
C2: Income and Expense
C3: 2025 P&L
A4: ACCOUNT | C4: DESCRIPTION | D4: 2025-01-06 | E4: 2025-02-07 | F4: 2025-03-08 | G4: 2025-04-09 | H4: 2025-05-10 | I4: 2025-06-11 | J4: 2025-07-01 | K4: 2025-08-01 | L4: 2025-09-01 | M4: 2025-10-01 | N4: 2025-11-25 | O4: 2025-12-25 | P4: Total
C5: INCOME
C7: REVENUE
C8: Total Rent Per Schedule | D8: 50095 | E8: 50095 | F8: 50095 | G8: 50095 | H8: 50095 | I8: 50095 | J8: 50095 | K8: 50095 | L8: 50095 | M8: 50095 | N8: 50095 | O8: 50095 | P8: =SUM(D8:O8) -> 601140
C9: Less: Loss to Lease in Force | D9: 0 | E9: 0 | F9: 0 | G9: 0 | H9: 0 | I9: 0 | J9: 0 | K9: 0 | L9: 0 | M9: 0 | N9: 0 | O9: 0 | P9: =SUM(D9:O9) -> 0
C10: Leases in Excess Of Market | D10: 0 | E10: 0 | F10: 0 | G10: 0 | H10: 0 | I10: 0 | J10: 0 | K10: 0 | L10: 0 | M10: 0 | N10: 0 | O10: 0 | P10: =SUM(D10:O10) -> 0
C12: GROSS POTENTIAL RENT | D12: =SUM(D8:D10) -> 50095 | E12: 50095 | F12: 50095 | G12: 50095 | H12: 50095 | I12: 50095 | J12: 50095 | K12: 50095 | L12: 50095 | M12: 50095 | N12: 50095 | O12: 50095 | P12: =SUM(P8:P10) -> 601140
C14: RENTAL LOSSES
C15: Vacancy Loss | D15: -5234.19 | E15: 0 | F15: -3741.79 | G15: -3075 | H15: -1337.5 | I15: 0 | J15: -354.51 | K15: -11009.61 | L15: -9653.28 | M15: -8771.53 | N15: -6606.51 | O15: -5648.56 | P15: =SUM(D15:O15) -> -55432.48
C16: Model/Administrative Units | D16: 0 | E16: 0 | F16: 0 | G16: 0 | H16: 0 | I16: 0 | J16: 0 | K16: 0 | L16: 0 | M16: 0 | N16: 0 | O16: 0 | P16: 0
C17: Out of Service/Down Units | D17: 0 | E17: 0 | F17: 0 | G17: 0 | H17: 0 | I17: 0 | J17: 0 | K17: 0 | L17: 0 | M17: 0 | N17: 0 | O17: 0 | P17: 0
C18: Employee Units | D18: 0 | E18: 0 | F18: 0 | G18: 0 | H18: 0 | I18: 0 | J18: 0 | K18: 0 | L18: 0 | M18: 0 | N18: 0 | O18: 0 | P18: 0
C19: Courtesy Officer Units | D19: 0 | E19: 0 | F19: 0 | G19: 0 | H19: 0 | I19: 0 | J19: 0 | K19: 0 | L19: 0 | M19: 0 | N19: 0 | O19: 0 | P19: 0
C20: Discount Given | D20: 0 | E20: 0 | F20: 0 | G20: 0 | H20: 0 | I20: 0 | J20: 0 | K20: 0 | L20: 0 | M20: 0 | N20: 0 | O20: 0 | P20: 0
C21: One-Time Special or Allowance | D21: 0 | E21: 0 | F21: 0 | G21: 0 | H21: 0 | I21: 0 | J21: 0 | K21: 0 | L21: 0 | M21: 0 | N21: 0 | O21: 0 | P21: 0
C22: Concessions | D22: 0 | E22: 0 | F22: 0 | G22: 0 | H22: 0 | I22: 0 | J22: 0 | K22: 0 | L22: 0 | M22: 0 | N22: 0 | O22: 0 | P22: 0
C23: Write-Off Uncollectible | D23: 0 | E23: 0 | F23: 0 | G23: 0 | H23: 0 | I23: 0 | J23: 0 | K23: 0 | L23: 0 | M23: 0 | N23: 0 | O23: 0 | P23: 0
C24: Miscellaneous Credit | D24: 0 | E24: 0 | F24: 0 | G24: 0 | H24: 0 | I24: 0 | J24: 0 | K24: 0 | L24: 0 | M24: 0 | N24: 0 | O24: 0 | P24: 0
C26: TOTAL RENTAL LOSSES | D26: =SUM(D15:D24) -> -5234.19 | E26: 0 | F26: -3741.79 | G26: -3075 | H26: -1337.5 | I26: 0 | J26: -354.51 | K26: -11009.61 | L26: -9653.28 | M26: =SUM(M15:M24) -> -8771.53 | N26: =SUM(N15:N24) -> -6606.51 | O26: -5648.56 | P26: =SUM(P15:P24) -> -55432.48
C28: NET RENTAL REVENUE | D28: =D12+D26 -> 44860.81 | E28: 50095 | F28: 46353.21 | G28: =G12+G26 -> 47020 | H28: 48757.5 | I28: 50095 | J28: 49740.49 | K28: 39085.39 | L28: 40441.72 | M28: 41323.47 | N28: 43488.49 | O28: 44446.44 | P28: =P12+P26 -> 545707.52
C30: OTHER REVENUE
C31: Late Charges | D31: 0 | E31: 0 | F31: 0 | G31: 0 | H31: 0 | I31: 0 | J31: 0 | K31: 0 | L31: 0 | M31: 0 | N31: 0 | O31: 0 | P31: =SUM(D31:O31) -> 0
C32: Reletting Fee | D32: 0 | E32: 0 | F32: 0 | G32: 0 | H32: 0 | I32: 0 | J32: 0 | K32: 0 | L32: 0 | M32: 0 | N32: 0 | O32: 0 | P32: 0
C33: NSF Fee Income | D33: 0 | E33: 0 | F33: 0 | G33: 0 | H33: 0 | I33: 0 | J33: 0 | K33: 0 | L33: 0 | M33: 0 | N33: 0 | O33: 0 | P33: 0
C34: Move out and Cleaning Repairs | D34: 0 | E34: 0 | F34: 0 | G34: 0 | H34: 0 | I34: 0 | J34: 0 | K34: 0 | L34: 0 | M34: 0 | N34: 0 | O34: 0 | P34: 0
C35: Damages Charged to Residents | D35: 0 | E35: 0 | F35: 0 | G35: 0 | H35: 0 | I35: 0 | J35: 0 | K35: 0 | L35: 0 | M35: 0 | N35: 0 | O35: 0 | P35: 0
C36: Keys, Locks, Lock Changes | D36: 0 | E36: 0 | F36: 0 | G36: 0 | H36: 0 | I36: 0 | J36: 0 | K36: 0 | L36: 0 | M36: 0 | N36: 0 | O36: 0 | P36: 0
C37: Lease Termination Fee Income | D37: 0 | E37: 0 | F37: 0 | G37: 0 | H37: 0 | I37: 0 | J37: 0 | K37: 0 | L37: 0 | M37: 0 | N37: 0 | O37: 0 | P37: 0
C38: Month To Month Fees | D38: 0 | E38: 0 | F38: 0 | G38: 0 | H38: 0 | I38: 0 | J38: 0 | K38: 0 | L38: 0 | M38: 0 | N38: 0 | O38: 0 | P38: 0
C39: Deposit Forfeitures | D39: 0 | E39: 0 | F39: 0 | G39: 0 | H39: 0 | I39: 0 | J39: 0 | K39: 0 | L39: 0 | M39: 0 | N39: 0 | O39: 0 | P39: 0
C40: Legal & Collection Fee Income | D40: 0 | E40: 0 | F40: 0 | G40: 0 | H40: 0 | I40: 0 | J40: 0 | K40: 0 | L40: 0 | M40: 0 | N40: 0 | O40: 0 | P40: 0
C41: Utility Reimbursements | D41: 0 | E41: 0 | F41: 0 | G41: 0 | H41: 0 | I41: 0 | J41: 0 | K41: 0 | L41: 0 | M41: 0 | N41: 0 | O41: 0 | P41: 0
C42: Application Fee Income | D42: 0 | E42: 0 | F42: 0 | G42: 0 | H42: 0 | I42: 0 | J42: 0 | K42: 0 | L42: 0 | M42: 0 | N42: 0 | O42: 0 | P42: 0
C43: Pet Fee Income | D43: 0 | E43: 0 | F43: 0 | G43: 0 | H43: 0 | I43: 0 | J43: 0 | K43: 0 | L43: 0 | M43: 0 | N43: 0 | O43: 0 | P43: 0
C44: Pet Fee Non-Refundable | D44: 0 | E44: 0 | F44: 0 | G44: 0 | H44: 0 | I44: 0 | J44: 0 | K44: 0 | L44: 0 | M44: 0 | N44: 0 | O44: 0 | P44: 0
C45: Referral Fee Income | D45: 0 | E45: 0 | F45: 0 | G45: 0 | H45: 0 | I45: 0 | J45: 0 | K45: 0 | L45: 0 | M45: 0 | N45: 0 | O45: 0 | P45: 0
C46: Laundry Room Income | D46: 0 | E46: 0 | F46: 0 | G46: 0 | H46: 0 | I46: 0 | J46: 0 | K46: 0 | L46: 0 | M46: 0 | N46: 0 | O46: 0 | P46: 0
C47: Washer/Dryer Rental Income | D47: 0 | E47: 0 | F47: 0 | G47: 0 | H47: 0 | I47: 0 | J47: 0 | K47: 0 | L47: 0 | M47: 0 | N47: 0 | O47: 0 | P47: 0
C48: Reserved/Covered Parking Fees | D48: 0 | E48: 0 | F48: 0 | G48: 0 | H48: 0 | I48: 0 | J48: 0 | K48: 0 | L48: 0 | M48: 0 | N48: 0 | O48: 0 | P48: 0
C49: Storage Space Rental | D49: 0 | E49: 0 | F49: 0 | G49: 0 | H49: 0 | I49: 0 | J49: 0 | K49: 0 | L49: 0 | M49: 0 | N49: 0 | O49: 0 | P49: 0
C50: Corporate Suite Rental | D50: 0 | E50: 0 | F50: 0 | G50: 0 | H50: 0 | I50: 0 | J50: 0 | K50: 0 | L50: 0 | M50: 0 | N50: 0 | O50: 0 | P50: 0
C51: Miscellaneous Income | D51: 530.22 | E51: 501.1 | F51: 467.16 | G51: 571.3 | H51: 551.2 | I51: 653.12 | J51: 618.75 | K51: 598.4 | L51: 598.48 | M51: 800.7 | N51: 571.3 | O51: 510.83 | P51: 6972.56
C53: TOTAL OTHER REVENUE | D53: =SUM(D31:D51) -> 530.22 | E53: 501.1 | F53: 467.16 | G53: 571.3 | H53: 551.2 | I53: 653.12 | J53: 618.75 | K53: 598.4 | L53: 598.48 | M53: 800.7 | N53: 571.3 | O53: 510.83 | P53: =SUM(P31:P51) -> 6972.56
C55: TOTAL INCOME | D55: =D28+D53 -> 45391.03 | E55: 50596.1 | F55: 46820.37 | G55: 47591.3 | H55: 49308.7 | I55: 50748.12 | J55: 50359.24 | K55: 39683.79 | L55: 41040.2 | M55: 42124.17 | N55: 44059.79 | O55: 44957.27 | P55: =P28+P53 -> 552680.08
C57: OPERATING EXPENSES
C59: ADMINISTRATIVE EXPENSE
A60: 5120 | C60: Credit Reports | D60: 0 | E60: 0 | F60: 0 | G60: 0 | H60: 0 | I60: 0 | J60: 0 | K60: 0 | L60: 0 | M60: 0 | N60: 0 | O60: 0 | P60: =SUM(D60:O60) -> 0
A61: 5130 | C61: Dues and Subscriptions | D61: 0 | E61: 0 | F61: 0 | G61: 0 | H61: 0 | I61: 0 | J61: 0 | K61: 0 | L61: 0 | M61: 0 | N61: 0 | O61: 0 | P61: 0
A62: 5140 | C62: Telephone and Yellow Pages | D62: 0 | E62: 0 | F62: 0 | G62: 0 | H62: 0 | I62: 0 | J62: 0 | K62: 0 | L62: 0 | M62: 0 | N62: 0 | O62: 0 | P62: 0
A63: 5150 | C63: Advertising | D63: 0 | E63: 319 | F63: 431 | G63: 431 | H63: 431 | I63: 431 | J63: 431 | K63: 431 | L63: 431 | M63: 431 | N63: 431 | O63: 431 | P63: 4629
A64: 5155 | C64: Cable Provider | D64: 0 | E64: 0 | F64: 0 | G64: 0 | H64: 0 | I64: 0 | J64: 0 | K64: 0 | L64: 0 | M64: 0 | N64: 0 | O64: 0 | P64: 0
A65: 5160 | C65: Office Supplies and Equipment | D65: 0 | E65: 0 | F65: 0 | G65: 0 | H65: 0 | I65: 0 | J65: 0 | K65: 0 | L65: 0 | M65: 0 | N65: 0 | O65: 0 | P65: 0
A66: 5170 | C66: Tenant Screening | D66: 0 | E66: 0 | F66: 0 | G66: 0 | H66: 0 | I66: 0 | J66: 0 | K66: 0 | L66: 0 | M66: 0 | N66: 0 | O66: 0 | P66: 0
A67: 5180 | C67: Postage, Courier & Freight | D67: 0 | E67: 0 | F67: 0 | G67: 0 | H67: 0 | I67: 0 | J67: 0 | K67: 0 | L67: 0 | M67: 0 | N67: 0 | O67: 0 | P67: 0
A68: 5190 | C68: Administrative Expense | D68: 0 | E68: 0 | F68: 0 | G68: 0 | H68: 0 | I68: 0 | J68: 0 | K68: 0 | L68: 0 | M68: 0 | N68: 0 | O68: 0 | P68: 0
A69: 5600 | C69: Mileage | D69: 0 | E69: 0 | F69: 0 | G69: 0 | H69: 0 | I69: 0 | J69: 0 | K69: 0 | L69: 0 | M69: 0 | N69: 0 | O69: 0 | P69: 0
A70: 5620 | C70: Accounting Services | D70: 0 | E70: 0 | F70: 0 | G70: 0 | H70: 0 | I70: 0 | J70: 0 | K70: 0 | L70: 0 | M70: 0 | N70: 0 | O70: 0 | P70: 0
A71: 5630 | C71: Legal Services | D71: 0 | E71: 0 | F71: 0 | G71: 0 | H71: 0 | I71: 0 | J71: 0 | K71: 0 | L71: 0 | M71: 0 | N71: 0 | O71: 0 | P71: 0
A72: 5635 | C72: Office Supplies | D72: 0 | E72: 0 | F72: 0 | G72: 0 | H72: 0 | I72: 0 | J72: 0 | K72: 0 | L72: 0 | M72: 0 | N72: 0 | O72: 0 | P72: 0
A73: 5640 | C73: Miscellaneous | D73: 0 | E73: 0 | F73: 0 | G73: 0 | H73: 0 | I73: 0 | J73: 0 | K73: 0 | L73: 0 | M73: 0 | N73: 0 | O73: 0 | P73: 0
C75: TOTAL ADMINISTRATIVE | D75: =SUM(D60:D73) -> 0 | E75: =SUM(E60:E74) -> 319 | F75: 431 | G75: 431 | H75: 431 | I75: 431 | J75: 431 | K75: 431 | L75: 431 | M75: 431 | N75: 431 | O75: 431 | P75: =SUM(D75:O75) -> 4629
C77: MANAGEMENT FEES
A78: 5610 | C78: Management Fees | D78: 0 | E78: 0 | F78: 0 | G78: 0 | H78: 0 | I78: 0 | J78: 0 | K78: 0 | L78: 0 | M78: 0 | N78: 0 | O78: 0 | P78: =SUM(D78:O78) -> 0
C79: Commission Placement Fee | D79: 0 | E79: 0 | F79: 0 | G79: 0 | H79: 0 | I79: 0 | J79: 0 | K79: 0 | L79: 0 | M79: 0 | N79: 0 | O79: 0 | P79: =SUM(D79:O79) -> 0
C81: TOTAL MANAGEMENT FEES | D81: =D78+D79 -> 0 | E81: 0 | F81: 0 | G81: 0 | H81: 0 | I81: 0 | J81: 0 | K81: 0 | L81: 0 | M81: 0 | N81: 0 | O81: 0 | P81: =SUM(D81:O81) -> 0
C83: SALARY EXPENSE
A84: 6010 | C84: Payroll-Office & Maintenance | D84: 0 | E84: 0 | F84: 0 | G84: 0 | H84: 0 | I84: 0 | J84: 0 | K84: 0 | L84: 0 | M84: 0 | N84: 0 | O84: 0 | P84: =SUM(D84:O84) -> 0
A85: 6020 | C85: Payroll-Clerical & Office | D85: 0 | E85: 0 | F85: 0 | G85: 0 | H85: 0 | I85: 0 | J85: 0 | K85: 0 | L85: 0 | M85: 0 | N85: 0 | O85: 0 | P85: =SUM(D85:O85) -> 0
A86: 6030 | C86: Payroll-Leasing | D86: 0 | E86: 0 | F86: 0 | G86: 0 | H86: 0 | I86: 0 | J86: 0 | K86: 0 | L86: 0 | M86: 0 | N86: 0 | O86: 0 | P86: 0
A87: 6040 | C87: Payroll-Maintenance | D87: 0 | E87: 0 | F87: 0 | G87: 0 | H87: 0 | I87: 0 | J87: 0 | K87: 0 | L87: 0 | M87: 0 | N87: 0 | O87: 0 | P87: 0
C88: Employer FICA-Total Payroll Tax | D88: 0 | E88: 0 | F88: 0 | G88: 0 | H88: 0 | I88: 0 | J88: 0 | K88: 0 | L88: 0 | M88: 0 | N88: 0 | O88: 0 | P88: 0
C89: Employer FUTA | D89: 0 | E89: 0 | F89: 0 | G89: 0 | H89: 0 | I89: 0 | J89: 0 | K89: 0 | L89: 0 | M89: 0 | N89: 0 | O89: 0 | P89: 0
C90: Employer SUTA | D90: 0 | E90: 0 | F90: 0 | G90: 0 | H90: 0 | I90: 0 | J90: 0 | K90: 0 | L90: 0 | M90: 0 | N90: 0 | O90: 0 | P90: 0
C91: Workers Compensation | D91: 0 | E91: 0 | F91: 0 | G91: 0 | H91: 0 | I91: 0 | J91: 0 | K91: 0 | L91: 0 | M91: 0 | N91: 0 | O91: 0 | P91: 0
A92: 6210 | C92: Group Health Insurance | D92: 0 | E92: 0 | F92: 0 | G92: 0 | H92: 0 | I92: 0 | J92: 0 | K92: 0 | L92: 0 | M92: 0 | N92: 0 | O92: 0 | P92: 0
C93: Other Employee Benefits | D93: 0 | E93: 0 | F93: 0 | G93: 0 | H93: 0 | I93: 0 | J93: 0 | K93: 0 | L93: 0 | M93: 0 | N93: 0 | O93: 0 | P93: 0
C95: TOTAL SALARY | D95: =SUM(D84:D93) -> 0 | E95: 0 | F95: 0 | G95: 0 | H95: 0 | I95: 0 | J95: 0 | K95: 0 | L95: 0 | M95: 0 | N95: 0 | O95: 0 | P95: =SUM(D95:O95) -> 0
C97: REPAIRS & MAINTENANCE
A98: 7010 | C98: Equipment/Repairs | D98: 0 | E98: 0 | F98: 0 | G98: 0 | H98: 0 | I98: 0 | J98: 0 | K98: 0 | L98: 0 | M98: 0 | N98: 0 | O98: 0 | P98: =SUM(D98:O98) -> 0
A99: 7020 | C99: Spare Parts | D99: 0 | E99: 0 | F99: 0 | G99: 0 | H99: 0 | I99: 0 | J99: 0 | K99: 0 | L99: 0 | M99: 0 | N99: 0 | O99: 0 | P99: =SUM(D99:O99) -> 0
A100: 7100 | C100: HVAC | D100: 0 | E100: 0 | F100: 0 | G100: 0 | H100: 0 | I100: 0 | J100: 0 | K100: 0 | L100: 0 | M100: 0 | N100: 0 | O100: 0 | P100: 0
A101: 7110 | C101: Contract Repair Services | D101: 0 | E101: 0 | F101: 0 | G101: 0 | H101: 0 | I101: 0 | J101: 0 | K101: 0 | L101: 0 | M101: 0 | N101: 0 | O101: 0 | P101: 0
A102: 7120 | C102: Pool Repairs and Supplies | D102: 0 | E102: 0 | F102: 0 | G102: 0 | H102: 0 | I102: 0 | J102: 0 | K102: 0 | L102: 0 | M102: 0 | N102: 0 | O102: 0 | P102: 0
A103: 7130 | C103: Paint & Painting Services | D103: 0 | E103: 0 | F103: 0 | G103: 0 | H103: 0 | I103: 0 | J103: 0 | K103: 0 | L103: 0 | M103: 0 | N103: 0 | O103: 0 | P103: 0
A104: 7135 | C104: Maintenance Supplies | D104: 0 | E104: 0 | F104: 0 | G104: 0 | H104: 0 | I104: 0 | J104: 0 | K104: 0 | L104: 0 | M104: 0 | N104: 0 | O104: 0 | P104: 0
A105: 7140 | C105: Plumbing Supplies & Services | D105: 0 | E105: 0 | F105: 0 | G105: 0 | H105: 0 | I105: 0 | J105: 0 | K105: 0 | L105: 0 | M105: 0 | N105: 0 | O105: 0 | P105: 0
A106: 7145 | C106: Cleaning Supplies | D106: 0 | E106: 0 | F106: 0 | G106: 0 | H106: 0 | I106: 0 | J106: 0 | K106: 0 | L106: 0 | M106: 0 | N106: 0 | O106: 0 | P106: 0
A107: 7150 | C107: Electrical Supplies and Services | D107: 0 | E107: 0 | F107: 0 | G107: 0 | H107: 0 | I107: 0 | J107: 0 | K107: 0 | L107: 0 | M107: 0 | N107: 0 | O107: 0 | P107: 0
A108: 7155 | C108: Hardware/Carpentry | D108: 300 | E108: 0 | F108: 0 | G108: 0 | H108: 0 | I108: 0 | J108: 0 | K108: 0 | L108: 0 | M108: 0 | N108: 0 | O108: 0 | P108: 300
A109: 7160 | C109: Make Ready | D109: 260 | E109: 170 | F109: 170 | G109: 0 | H109: 120 | I109: 100 | J109: 100 | K109: 270 | L109: 0 | M109: 350 | N109: 0 | O109: 180 | P109: 1720
A110: 7170 | C110: Roof Repairs | D110: 0 | E110: 0 | F110: 0 | G110: 0 | H110: 0 | I110: 0 | J110: 0 | K110: 0 | L110: 0 | M110: 0 | N110: 0 | O110: 0 | P110: 0
A111: 7180 | C111: Building Exterior Repairs | D111: 0 | E111: 0 | F111: 0 | G111: 0 | H111: 0 | I111: 0 | J111: 0 | K111: 0 | L111: 0 | M111: 0 | N111: 0 | O111: 0 | P111: 0
A112: 7190 | C112: Window & Door Repairs | D112: 0 | E112: 0 | F112: 0 | G112: 0 | H112: 0 | I112: 0 | J112: 0 | K112: 0 | L112: 0 | M112: 0 | N112: 0 | O112: 0 | P112: 0
A113: 7200 | C113: Keys and Locks | D113: 0 | E113: 0 | F113: 0 | G113: 0 | H113: 0 | I113: 0 | J113: 0 | K113: 0 | L113: 0 | M113: 0 | N113: 0 | O113: 0 | P113: 0
A114: 7210 | C114: Carpet & Floor Cleaning & Repair | D114: 0 | E114: 0 | F114: 0 | G114: 0 | H114: 0 | I114: 0 | J114: 0 | K114: 0 | L114: 0 | M114: 0 | N114: 0 | O114: 0 | P114: 0
A115: 7220 | C115: Floor & Carpet Replacement | D115: 0 | E115: 1460.93 | F115: 405.93 | G115: 0 | H115: 0 | I115: 135.31 | J115: 0 | K115: 0 | L115: 0 | M115: 541.25 | N115: 0 | O115: 0 | P115: 2543.42
A116: 7350 | C116: Miscellaneous | D116: 0 | E116: 0 | F116: 400 | G116: 0 | H116: 0 | I116: 0 | J116: 965 | K116: 3131 | L116: 0 | M116: 0 | N116: 0 | O116: 0 | P116: =SUM(D116:O116) -> 4496
C118: TOTAL REPAIRS & MAINTENANCE | D118: =SUM(D98:D116) -> 560 | E118: 1630.93 | F118: 975.93 | G118: 0 | H118: 120 | I118: 235.31 | J118: 1065 | K118: 3401 | L118: 0 | M118: 891.25 | N118: 0 | O118: 180 | P118: =SUM(D118:O118) -> 9059.42
C120: UTILITIES
A121: 7500 | C121: Utilities-Gas | D121: 0 | E121: 0 | F121: 0 | G121: 0 | H121: 0 | I121: 0 | J121: 0 | K121: 0 | L121: 0 | M121: 0 | N121: 0 | O121: 0 | P121: =SUM(D121:O121) -> 0
A122: 7510 | C122: Utilities-Electricity | D122: 351.37 | E122: 590.35 | F122: 457.87 | G122: 436.07 | H122: 274.67 | I122: 238.77 | J122: 260.38 | K122: 212.94 | L122: 651.01 | M122: 507.97 | N122: 439.46 | O122: 356.4 | P122: =SUM(D122:O122) -> 4777.26
A123: 7520 | C123: Utilities-Water | D123: 684.29 | E123: 1060.12 | F123: 829.29 | G123: 966.82 | H123: 688 | I123: 730.59 | J123: 859.38 | K123: 1355.32 | L123: 1620.28 | M123: 1634.83 | N123: 1492.73 | O123: 983.13 | P123: 12904.78
A124: 7530 | C124: Utilities-Trash | D124: 473.72 | E124: 473.72 | F124: 473.72 | G124: 473.72 | H124: 473.72 | I124: 473.08 | J124: 473.72 | K124: 473.72 | L124: 473.72 | M124: 473.72 | N124: 473.72 | O124: 473.72 | P124: 5684
A125: 7540 | C125: Utilities-Sewer | D125: 0 | E125: 0 | F125: 0 | G125: 0 | H125: 0 | I125: 0 | J125: 0 | K125: 0 | L125: 0 | M125: 0 | N125: 0 | O125: 0 | P125: 0
C127: TOTAL UTILITIES | D127: =SUM(D121:D125) -> 1509.38 | E127: 2124.19 | F127: 1760.88 | G127: 1876.61 | H127: 1436.39 | I127: =SUM(I121:I125) -> 1442.44 | J127: =SUM(J121:J125) -> 1593.48 | K127: =SUM(K121:K125) -> 2041.98 | L127: 2745.01 | M127: =SUM(M121:M125) -> 2616.52 | N127: =SUM(N121:N125) -> 2405.91 | O127: 1813.25 | P127: =SUM(D127:O127) -> 23366.04
C129: CONTRACT SERVICES
A130: 7610 | C130: Contract-Cable/Internet | D130: 2445.82 | E130: 2443.32 | F130: 2443.32 | G130: 2443.32 | H130: 2443.32 | I130: 2443.32 | J130: 2443.32 | K130: 2443.32 | L130: 2443.32 | M130: 2443.32 | N130: 2443.32 | O130: 2443.32 | P130: =SUM(D130:O130) -> 29322.34
A131: 7620 | C131: Contract-Pest Control | D131: 0 | E131: 253.31 | F131: 253.31 | G131: 0 | H131: 0 | I131: 253.31 | J131: 0 | K131: 0 | L131: 0 | M131: 0 | N131: 0 | O131: 0 | P131: =SUM(D131:O131) -> 759.93
A132: 7630 | C132: Contract-Landscape/Yard Care | D132: 310 | E132: 0 | F132: 260 | G132: 160 | H132: 160 | I132: 1260 | J132: 310 | K132: 410 | L132: 260 | M132: 300 | N132: 600 | O132: 600 | P132: 4630
C133: Contract-Security Patrol | D133: 0 | E133: 0 | F133: 0 | G133: 0 | H133: 0 | I133: 0 | J133: 0 | K133: 0 | L133: 0 | M133: 0 | N133: 0 | O133: 0 | P133: 0
A134: 7650 | C134: Contract-Cleaning | D134: 0 | E134: 0 | F134: 0 | G134: 0 | H134: 0 | I134: 0 | J134: 0 | K134: 0 | L134: 0 | M134: 0 | N134: 0 | O134: 0 | P134: 0
C135: Contract Services | D135: 0 | E135: 0 | F135: 0 | G135: 0 | H135: 0 | I135: 0 | J135: 0 | K135: 0 | L135: 0 | M135: 0 | N135: 0 | O135: 0 | P135: 0
C137: TOTAL CONTRACT SERVICES | D137: =SUM(D130:D135) -> 2755.82 | E137: 2696.63 | F137: 2956.63 | G137: 2603.32 | H137: 2603.32 | I137: 3956.63 | J137: 2753.32 | K137: 2853.32 | L137: 2703.32 | M137: 2743.32 | N137: 3043.32 | O137: 3043.32 | P137: =SUM(D137:O137) -> 34712.27
C139: TAXES & INSURANCE
A140: 8010 | C140: Ad Valorem (Property ) Taxes | D140: 9252.03 | E140: 9252.03 | F140: 9252.03 | G140: 9252.03 | H140: 9252.03 | I140: 9252.03 | J140: 9252.03 | K140: 9252.03 | L140: 9252.03 | M140: 9252.03 | N140: 9252.03 | O140: 9252.03 | P140: =SUM(D140:O140) -> 111024.36
C141: Fees & Duties | D141: 0 | E141: 0 | F141: 0 | G141: 0 | H141: 0 | I141: 0 | J141: 0 | K141: 0 | L141: 0 | M141: 0 | N141: 0 | O141: 0 | P141: =SUM(D141:O141) -> 0
C142: Other Taxes | D142: 0 | E142: 0 | F142: 0 | G142: 0 | H142: 0 | I142: 0 | J142: 0 | K142: 0 | L142: 0 | M142: 0 | N142: 0 | O142: 0 | P142: 0
A143: 8120 | C143: Insurance | D143: 2248.98 | E143: 2248.98 | F143: 2248.98 | G143: 2248.98 | H143: 2248.98 | I143: 2248.98 | J143: 2248.98 | K143: 2248.98 | L143: 2248.98 | M143: 2248.98 | N143: 2248.98 | O143: 2248.98 | P143: 26987.76
C145: TOTAL TAXES & INSURANCE | D145: =SUM(D140:D143) -> 11501.01 | E145: 11501.01 | F145: 11501.01 | G145: =SUM(G140:G144) -> 11501.01 | H145: 11501.01 | I145: 11501.01 | J145: 11501.01 | K145: 11501.01 | L145: 11501.01 | M145: 11501.01 | N145: 11501.01 | O145: 11501.01 | P145: =SUM(D145:O145) -> 138012.12
C148: TOTAL OPERATING EXPENSE | D148: =D75+D81+D84+D118+D127+D137+D145 -> 16326.21 | E148: 18271.76 | F148: 17625.45 | G148: 16411.94 | H148: 16091.72 | I148: 17566.39 | J148: 17343.81 | K148: 20228.31 | L148: 17380.34 | M148: 18183.1 | N148: 17381.24 | O148: 16968.58 | P148: =SUM(D148:O148) -> 209778.85
C150: NET OPERATING INCOME | D150: =D55-D148 -> 29064.82 | E150: 32324.34 | F150: 29194.92 | G150: 31179.36 | H150: 33216.98 | I150: 33181.73 | J150: 33015.43 | K150: 19455.48 | L150: 23659.86 | M150: 23941.07 | N150: 26678.55 | O150: 27988.69 | P150: =P55-P148 -> 342901.23
C152: RECURRING REPLACEMENTS | M152: =SUM(J150:O150) -> 154739.08
C153: Flooring Replacement | D153: 0 | E153: 0 | F153: 0 | G153: 0 | H153: 0 | I153: 0 | J153: 0 | K153: 0 | L153: 0 | N153: 0 | O153: 0 | P153: =SUM(D153:O153) -> 0
C154: Mini-Blind Replacement | D154: 0 | E154: 0 | F154: 0 | G154: 0 | H154: 0 | I154: 0 | J154: 0 | K154: 0 | L154: 0 | M154: 0 | N154: 0 | O154: 0 | P154: =SUM(D154:O154) -> 0
C155: Appliance Replacement | D155: 0 | E155: 0 | F155: 1322.51 | G155: 0 | H155: 0 | I155: 0 | J155: 0 | K155: 0 | L155: 0 | M155: 0 | N155: 0 | O155: 0 | P155: =SUM(D155:O155) -> 1322.51
C156: Individual Unit Water Heater | D156: 0 | E156: 0 | F156: 0 | G156: 0 | H156: 0 | I156: 0 | J156: 0 | K156: 0 | L156: 0 | M156: 0 | N156: 0 | O156: 0 | P156: =SUM(D156:O156) -> 0
C158: TOTAL RECURRING REPLACEMENTS | D158: =SUM(D153:D156) -> 0 | E158: 0 | F158: 1322.51 | G158: 0 | H158: 0 | I158: 0 | J158: 0 | K158: 0 | L158: 0 | M158: 0 | N158: 0 | O158: 0 | P158: =SUM(P153:P156) -> 1322.51
C160: NON-RECURRING REPLACMENTS
C161: Various Contractors | D161: 0 | E161: 0 | F161: 0 | G161: 520 | H161: 1073.86 | I161: 2085.16 | J161: 0 | K161: 96.34 | L161: 830.47 | M161: 1670.82 | N161: 195 | O161: 415 | P161: =SUM(D161:O161) -> 6886.65
C162: Playground/Recreational Eqp. | D162: 0 | E162: 0 | F162: 0 | G162: 0 | H162: 0 | I162: 0 | J162: 0 | K162: 0 | L162: 0 | M162: 0 | N162: 0 | O162: 0 | P162: =SUM(D162:O162) -> 0
C163: Monument/Directional Signage | D163: 0 | E163: 0 | F163: 0 | G163: 0 | H163: 0 | I163: 0 | J163: 0 | K163: 0 | L163: 0 | M163: 0 | N163: 0 | O163: 0 | P163: 0
C164: Lawns/Trees/Shrubs Repl. | D164: 0 | E164: 0 | F164: 0 | G164: 0 | H164: 0 | I164: 0 | J164: 0 | K164: 0 | L164: 0 | M164: 0 | N164: 0 | O164: 0 | P164: 0
C165: Paving/parking Lot Repl. | D165: 0 | E165: 0 | F165: 0 | G165: 0 | H165: 0 | I165: 0 | J165: 0 | K165: 0 | L165: 0 | M165: 0 | N165: 0 | O165: 0 | P165: 0
C166: Roof Replacement/Overlay | D166: 0 | E166: 0 | F166: 0 | G166: 0 | H166: 0 | I166: 0 | J166: 0 | K166: 0 | L166: 0 | M166: 0 | N166: 0 | O166: 0 | P166: 0
C167: Ext. Carpentry/Siding/Gutter | D167: 0 | E167: 0 | F167: 0 | G167: 0 | H167: 0 | I167: 0 | J167: 0 | K167: 0 | L167: 0 | M167: 0 | N167: 0 | O167: 0 | P167: 0
C168: Exterior Painting | D168: 0 | E168: 0 | F168: 0 | G168: 0 | H168: 0 | I168: 0 | J168: 0 | K168: 0 | L168: 0 | M168: 0 | N168: 0 | O168: 0 | P168: 0
C169: Concrete/Foundation Repairs | D169: 0 | E169: 0 | F169: 0 | G169: 0 | H169: 0 | I169: 0 | J169: 0 | K169: 0 | L169: 0 | M169: 0 | N169: 0 | O169: 0 | P169: 0
C170: Major Exterior Repairs | D170: 0 | E170: 0 | F170: 0 | G170: 0 | H170: 0 | I170: 0 | J170: 0 | K170: 0 | L170: 0 | M170: 0 | N170: 0 | O170: 0 | P170: 0
C171: Bricks/Stucco & Masonry | D171: 0 | E171: 0 | F171: 0 | G171: 0 | H171: 0 | I171: 0 | J171: 0 | K171: 0 | L171: 0 | M171: 0 | N171: 0 | O171: 0 | P171: 0
C172: Access Gate Replacement | D172: 0 | E172: 0 | F172: 0 | G172: 0 | H172: 0 | I172: 0 | J172: 0 | K172: 0 | L172: 0 | M172: 0 | N172: 0 | O172: 0 | P172: 0
C173: HVAC Replacement | D173: 0 | E173: 0 | F173: 0 | G173: 0 | H173: 0 | I173: 0 | J173: 0 | K173: 0 | L173: 0 | M173: 0 | N173: 0 | O173: 0 | P173: 0
C174: Plumbing Repalcement | D174: 0 | E174: 0 | F174: 0 | G174: 0 | H174: 0 | I174: 0 | J174: 0 | K174: 0 | L174: 0 | M174: 0 | N174: 0 | O174: 0 | P174: 0
C175: Electrical Replacement | D175: 0 | E175: 0 | F175: 0 | G175: 0 | H175: 0 | I175: 0 | J175: 0 | K175: 0 | L175: 0 | M175: 0 | N175: 0 | O175: 0 | P175: 0
C176: Pool & Equipment Expense | D176: 0 | E176: 0 | F176: 0 | G176: 0 | H176: 0 | I176: 0 | J176: 0 | K176: 0 | L176: 0 | M176: 0 | N176: 0 | O176: 0 | P176: 0
C177: Counter Resurfacing | D177: 0 | E177: 0 | F177: 0 | G177: 0 | H177: 0 | I177: 0 | J177: 0 | K177: 0 | L177: 0 | M177: 0 | N177: 0 | O177: 0 | P177: 0
C178: Down Units Repair Expense | D178: 0 | E178: 0 | F178: 0 | G178: 0 | H178: 0 | I178: 0 | J178: 0 | K178: 0 | L178: 0 | M178: 0 | N178: 0 | O178: 0 | P178: 0
C179: Other Non-Recurring Replacements | D179: 0 | E179: 0 | F179: 0 | G179: 0 | H179: 0 | I179: 0 | J179: 0 | K179: 0 | L179: 0 | M179: 0 | N179: 0 | O179: 0 | P179: 0
C180: Fire & Storm Damage | D180: 0 | E180: 0 | F180: 0 | G180: 0 | H180: 0 | I180: 0 | J180: 0 | K180: 0 | L180: 0 | M180: 0 | N180: 0 | O180: 0 | P180: 0
C181: Insurance Adjuster fee | D181: 0 | E181: 0 | F181: 0 | G181: 0 | H181: 0 | I181: 0 | J181: 0 | K181: 0 | L181: 0 | M181: 0 | N181: 0 | O181: 0 | P181: 0
C182: Computer Equipment Purchase | D182: 0 | E182: 0 | F182: 0 | G182: 0 | H182: 0 | I182: 0 | J182: 0 | K182: 0 | L182: 0 | M182: 0 | N182: 0 | O182: 0 | P182: 0
C183: Insured Loss Recovery | D183: 0 | E183: 0 | F183: 0 | G183: 0 | H183: 0 | I183: 0 | J183: 0 | K183: 0 | L183: 0 | M183: 0 | N183: 0 | O183: 0 | P183: 0
C184: Construction Supervision fee | D184: 0 | E184: 0 | F184: 0 | G184: 0 | H184: 0 | I184: 0 | J184: 0 | K184: 0 | L184: 0 | M184: 0 | N184: 0 | O184: 0 | P184: 0
C186: TOTAL NON-RECURRING REPLACEMENTS | D186: =SUM(D161:D184) -> 0 | E186: 0 | F186: 0 | G186: 520 | H186: 1073.86 | I186: 2085.16 | J186: 0 | K186: 96.34 | L186: 830.47 | M186: 1670.82 | N186: 195 | O186: 415 | P186: =SUM(P161:P184) -> 6886.65
C188: TOTAL PROPERTY REPLACEMENTS | D188: =D158+D186 -> 0 | E188: 0 | F188: 1322.51 | G188: 520 | H188: 1073.86 | I188: 2085.16 | J188: 0 | K188: 96.34 | L188: 830.47 | M188: 1670.82 | N188: 195 | O188: 415 | P188: =P158+P186 -> 8209.16
C190: RESERVE ACTIVITY
C191: Reserve Payment | D191: 0 | E191: 0 | F191: 0 | G191: 0 | H191: 0 | I191: 0 | J191: 0 | K191: 0 | L191: 0 | M191: 0 | N191: 0 | O191: 0 | P191: =SUM(D191:O191) -> 0
C192: Reserve (Reimbursement) | D192: 0 | E192: 0 | F192: 0 | G192: 0 | H192: 0 | I192: 0 | J192: 0 | K192: 0 | L192: 0 | M192: 0 | N192: 0 | O192: 0 | P192: =SUM(D192:O192) -> 0
C194: NET RESERVE ACTIVITY | D194: =D191+D192 -> 0 | E194: 0 | F194: 0 | G194: 0 | H194: 0 | I194: 0 | J194: 0 | K194: 0 | L194: 0 | M194: 0 | N194: 0 | O194: 0 | P194: =P191+P192 -> 0
C196: AVAILABLE FOR DEBT | D196: =D150-D188-D194 -> 29064.82 | E196: 32324.34 | F196: 27872.41 | G196: 30659.36 | H196: 32143.12 | I196: 31096.57 | J196: 33015.43 | K196: 19359.14 | L196: 22829.39 | M196: 22270.25 | N196: 26483.55 | O196: 27573.69 | P196: =P150-P188-P194 -> 334692.07
C198: DEBT SERVICE
A199: 8080 | C199: Interest-First Mortgage | D199: 0 | E199: 0 | F199: 0 | G199: 0 | H199: 0 | I199: 0 | J199: 0 | K199: 0 | L199: 0 | M199: 0 | N199: 0 | O199: 0 | P199: =SUM(D199:O199) -> 0
C200: Interest-Second Mortgage | D200: 0 | E200: 0 | F200: 0 | G200: 0 | H200: 0 | I200: 0 | J200: 0 | K200: 0 | L200: 0 | M200: 0 | N200: 0 | O200: 0 | P200: =SUM(D200:O200) -> 0
C201: Interest-Other | D201: 0 | E201: 0 | F201: 0 | G201: 0 | H201: 0 | I201: 0 | J201: 0 | K201: 0 | L201: 0 | M201: 0 | N201: 0 | O201: 0 | P201: 0
C202: Principle--First Mortgage | D202: 0 | E202: 0 | F202: 0 | G202: 0 | H202: 0 | I202: 0 | J202: 0 | K202: 0 | L202: 0 | M202: 0 | N202: 0 | O202: 0 | P202: 0
C203: Principle-Second Mortgage | D203: 0 | E203: 0 | F203: 0 | G203: 0 | H203: 0 | I203: 0 | J203: 0 | K203: 0 | L203: 0 | M203: 0 | N203: 0 | O203: 0 | P203: 0
C204: Principle-Balloon | D204: 0 | E204: 0 | F204: 0 | G204: 0 | H204: 0 | I204: 0 | J204: 0 | K204: 0 | L204: 0 | M204: 0 | N204: 0 | O204: 0 | P204: 0
C205: MIP Payment | D205: 0 | E205: 0 | F205: 0 | G205: 0 | H205: 0 | I205: 0 | J205: 0 | K205: 0 | L205: 0 | M205: 0 | N205: 0 | O205: 0 | P205: 0
C206: Land Lease Payment | D206: 0 | E206: 0 | F206: 0 | G206: 0 | H206: 0 | I206: 0 | J206: 0 | K206: 0 | L206: 0 | M206: 0 | N206: 0 | O206: 0 | P206: 0
C208: TOTAL DEBT SERVICE | D208: =SUM(D199:D206) -> 0 | E208: 0 | F208: 0 | G208: 0 | H208: 0 | I208: 0 | J208: 0 | K208: 0 | L208: 0 | M208: 0 | N208: 0 | O208: 0 | P208: =SUM(P199:P206) -> 0
C210: NET CASH FLOW | D210: =D196-D208 -> 29064.82 | E210: 32324.34 | F210: 27872.41 | G210: 30659.36 | H210: 32143.12 | I210: 31096.57 | J210: 33015.43 | K210: 19359.14 | L210: 22829.39 | M210: 22270.25 | N210: 26483.55 | O210: 27573.69 | P210: =P196-P208 -> 334692.07

Sheet June YTD 2026
C1: Industrial Park
C2: Income and Expense
C3: 2026 P&L
A4: ACCOUNT | C4: DESCRIPTION | D4: 2026-01-06 | E4: 2026-02-07 | F4: 2026-03-08 | G4: 2026-04-09 | H4: 2026-05-10 | I4: 2026-06-11 | J4: 2026-07-01 | K4: 2026-08-01 | L4: 2026-09-01 | M4: 2026-10-01 | N4: 2026-11-25 | O4: 2026-12-25 | P4: Total
C5: INCOME
C7: REVENUE
C8: Total Rent Per Schedule | D8: 50095 | E8: 50095 | F8: 50095 | G8: 50095 | H8: 50095 | I8: 50095 | J8: 0 | K8: 0 | L8: 0 | M8: 0 | N8: 0 | O8: 0 | P8: =SUM(D8:O8) -> 300570
C9: Less: Loss to Lease in Force | D9: 0 | E9: 0 | F9: 0 | G9: 0 | H9: 0 | I9: 0 | J9: 0 | K9: 0 | L9: 0 | M9: 0 | N9: 0 | O9: 0 | P9: =SUM(D9:O9) -> 0
C10: Leases in Excess Of Market | D10: 0 | E10: 0 | F10: 0 | G10: 0 | H10: 0 | I10: 0 | J10: 0 | K10: 0 | L10: 0 | M10: 0 | N10: 0 | O10: 0 | P10: =SUM(D10:O10) -> 0
C12: GROSS POTENTIAL RENT | D12: =SUM(D8:D10) -> 50095 | E12: 50095 | F12: 50095 | G12: 50095 | H12: 50095 | I12: 50095 | J12: 0 | K12: 0 | L12: 0 | M12: 0 | N12: 0 | O12: 0 | P12: =SUM(P8:P10) -> 300570
C14: RENTAL LOSSES
C15: Vacancy Loss | D15: -3652.5 | E15: -328.55 | F15: 0 | G15: -3345.83 | H15: -3325.56 | I15: -1677.5 | J15: 0 | K15: 0 | L15: 0 | M15: 0 | N15: 0 | O15: 0 | P15: =SUM(D15:O15) -> -12329.94
C16: Model/Administrative Units | D16: 0 | E16: 0 | F16: 0 | G16: 0 | H16: 0 | I16: 0 | J16: 0 | K16: 0 | L16: 0 | M16: 0 | N16: 0 | O16: 0 | P16: 0
C17: Out of Service/Down Units | D17: 0 | E17: 0 | F17: 0 | G17: 0 | H17: 0 | I17: 0 | J17: 0 | K17: 0 | L17: 0 | M17: 0 | N17: 0 | O17: 0 | P17: 0
C18: Employee Units | D18: 0 | E18: 0 | F18: 0 | G18: 0 | H18: 0 | I18: 0 | J18: 0 | K18: 0 | L18: 0 | M18: 0 | N18: 0 | O18: 0 | P18: 0
C19: Courtesy Officer Units | D19: 0 | E19: 0 | F19: 0 | G19: 0 | H19: 0 | I19: 0 | J19: 0 | K19: 0 | L19: 0 | M19: 0 | N19: 0 | O19: 0 | P19: 0
C20: Discount Given | D20: 0 | E20: 0 | F20: 0 | G20: 0 | H20: 0 | I20: 0 | J20: 0 | K20: 0 | L20: 0 | M20: 0 | N20: 0 | O20: 0 | P20: 0
C21: One-Time Special or Allowance | D21: 0 | E21: 0 | F21: 0 | G21: 0 | H21: 0 | I21: 0 | J21: 0 | K21: 0 | L21: 0 | M21: 0 | N21: 0 | O21: 0 | P21: 0
C22: Concessions | D22: 0 | E22: 0 | F22: 0 | G22: 0 | H22: 0 | I22: 0 | J22: 0 | K22: 0 | L22: 0 | M22: 0 | N22: 0 | O22: 0 | P22: 0
C23: Write-Off Uncollectible | D23: 0 | E23: 0 | F23: 0 | G23: 0 | H23: 0 | I23: 0 | J23: 0 | K23: 0 | L23: 0 | M23: 0 | N23: 0 | O23: 0 | P23: 0
C24: Miscellaneous Credit | D24: 0 | E24: 0 | F24: 0 | G24: 0 | H24: 0 | I24: 0 | J24: 0 | K24: 0 | L24: 0 | M24: 0 | N24: 0 | O24: 0 | P24: 0
C26: TOTAL RENTAL LOSSES | D26: =SUM(D15:D24) -> -3652.5 | E26: -328.55 | F26: 0 | G26: -3345.83 | H26: -3325.56 | I26: -1677.5 | J26: 0 | K26: 0 | L26: 0 | M26: 0 | N26: 0 | O26: 0 | P26: -12329.94
C28: NET RENTAL REVENUE | D28: =D12+D26 -> 46442.5 | E28: 49766.45 | F28: 50095 | G28: =G12+G26 -> 46749.17 | H28: 46769.44 | I28: 48417.5 | J28: 0 | K28: 0 | L28: 0 | M28: 0 | N28: 0 | O28: 0 | P28: =P12+P26 -> 288240.06
C30: OTHER REVENUE
C31: Late Charges | D31: 0 | E31: 0 | F31: 0 | G31: 0 | H31: 0 | I31: 0 | J31: 0 | K31: 0 | L31: 0 | M31: 0 | N31: 0 | O31: 0 | P31: =SUM(D31:O31) -> 0
C32: Reletting Fee | D32: 0 | E32: 0 | F32: 0 | G32: 0 | H32: 0 | I32: 0 | J32: 0 | K32: 0 | L32: 0 | M32: 0 | N32: 0 | O32: 0 | P32: 0
C33: NSF Fee Income | D33: 0 | E33: 0 | F33: 0 | G33: 0 | H33: 0 | I33: 0 | J33: 0 | K33: 0 | L33: 0 | M33: 0 | N33: 0 | O33: 0 | P33: 0
C34: Move out and Cleaning Repairs | D34: 0 | E34: 0 | F34: 0 | G34: 0 | H34: 0 | I34: 0 | J34: 0 | K34: 0 | L34: 0 | M34: 0 | N34: 0 | O34: 0 | P34: 0
C35: Damages Charged to Residents | D35: 0 | E35: 0 | F35: 0 | G35: 0 | H35: 0 | I35: 0 | J35: 0 | K35: 0 | L35: 0 | M35: 0 | N35: 0 | O35: 0 | P35: 0
C36: Keys, Locks, Lock Changes | D36: 0 | E36: 0 | F36: 0 | G36: 0 | H36: 0 | I36: 0 | J36: 0 | K36: 0 | L36: 0 | M36: 0 | N36: 0 | O36: 0 | P36: 0
C37: Lease Termination Fee Income | D37: 0 | E37: 0 | F37: 0 | G37: 0 | H37: 0 | I37: 0 | J37: 0 | K37: 0 | L37: 0 | M37: 0 | N37: 0 | O37: 0 | P37: 0
C38: Month To Month Fees | D38: 0 | E38: 0 | F38: 0 | G38: 0 | H38: 0 | I38: 0 | J38: 0 | K38: 0 | L38: 0 | M38: 0 | N38: 0 | O38: 0 | P38: 0
C39: Deposit Forfeitures | D39: 0 | E39: 0 | F39: 0 | G39: 0 | H39: 0 | I39: 0 | J39: 0 | K39: 0 | L39: 0 | M39: 0 | N39: 0 | O39: 0 | P39: 0
C40: Legal & Collection Fee Income | D40: 0 | E40: 0 | F40: 0 | G40: 0 | H40: 0 | I40: 0 | J40: 0 | K40: 0 | L40: 0 | M40: 0 | N40: 0 | O40: 0 | P40: 0
C41: Utility Reimbursements | D41: 0 | E41: 0 | F41: 0 | G41: 0 | H41: 0 | I41: 0 | J41: 0 | K41: 0 | L41: 0 | M41: 0 | N41: 0 | O41: 0 | P41: 0
C42: Application Fee Income | D42: 0 | E42: 0 | F42: 0 | G42: 0 | H42: 0 | I42: 0 | J42: 0 | K42: 0 | L42: 0 | M42: 0 | N42: 0 | O42: 0 | P42: 0
C43: Pet Fee Income | D43: 0 | E43: 0 | F43: 0 | G43: 0 | H43: 0 | I43: 0 | J43: 0 | K43: 0 | L43: 0 | M43: 0 | N43: 0 | O43: 0 | P43: 0
C44: Pet Fee Non-Refundable | D44: 0 | E44: 0 | F44: 0 | G44: 0 | H44: 0 | I44: 0 | J44: 0 | K44: 0 | L44: 0 | M44: 0 | N44: 0 | O44: 0 | P44: 0
C45: Referral Fee Income | D45: 0 | E45: 0 | F45: 0 | G45: 0 | H45: 0 | I45: 0 | J45: 0 | K45: 0 | L45: 0 | M45: 0 | N45: 0 | O45: 0 | P45: 0
C46: Laundry Room Income | D46: 0 | E46: 0 | F46: 0 | G46: 0 | H46: 0 | I46: 0 | J46: 0 | K46: 0 | L46: 0 | M46: 0 | N46: 0 | O46: 0 | P46: 0
C47: Washer/Dryer Rental Income | D47: 0 | E47: 0 | F47: 0 | G47: 0 | H47: 0 | I47: 0 | J47: 0 | K47: 0 | L47: 0 | M47: 0 | N47: 0 | O47: 0 | P47: 0
C48: Reserved/Covered Parking Fees | D48: 0 | E48: 0 | F48: 0 | G48: 0 | H48: 0 | I48: 0 | J48: 0 | K48: 0 | L48: 0 | M48: 0 | N48: 0 | O48: 0 | P48: 0
C49: Storage Space Rental | D49: 0 | E49: 0 | F49: 0 | G49: 0 | H49: 0 | I49: 0 | J49: 0 | K49: 0 | L49: 0 | M49: 0 | N49: 0 | O49: 0 | P49: 0
C50: Corporate Suite Rental | D50: 0 | E50: 0 | F50: 0 | G50: 0 | H50: 0 | I50: 0 | J50: 0 | K50: 0 | L50: 0 | M50: 0 | N50: 0 | O50: 0 | P50: 0
C51: Miscellaneous Income | D51: 1144.98 | E51: 591.29 | F51: 1340.19 | G51: 4713.05 | H51: 1389.49 | I51: 1287.38 | J51: 0 | K51: 0 | L51: 0 | M51: 0 | N51: 0 | O51: 0 | P51: 10466.38
C53: TOTAL OTHER REVENUE | D53: =SUM(D31:D51) -> 1144.98 | E53: 591.29 | F53: 1340.19 | G53: 4713.05 | H53: 1389.49 | I53: 1287.38 | J53: 0 | K53: 0 | L53: 0 | M53: 0 | N53: 0 | O53: 0 | P53: =SUM(P31:P51) -> 10466.38
C55: TOTAL INCOME | D55: =D28+D53 -> 47587.48 | E55: 50357.74 | F55: 51435.19 | G55: 51462.22 | H55: 48158.93 | I55: 49704.88 | J55: 0 | K55: 0 | L55: 0 | M55: 0 | N55: 0 | O55: 0 | P55: =P28+P53 -> 298706.44
C57: OPERATING EXPENSES
C59: ADMINISTRATIVE EXPENSE
A60: 5120 | C60: Credit Reports | D60: 0 | E60: 0 | F60: 0 | G60: 0 | H60: 0 | I60: 0 | J60: 0 | K60: 0 | L60: 0 | M60: 0 | N60: 0 | O60: 0 | P60: =SUM(D60:O60) -> 0
A61: 5130 | C61: Dues and Subscriptions | D61: 0 | E61: 0 | F61: 0 | G61: 0 | H61: 0 | I61: 0 | J61: 0 | K61: 0 | L61: 0 | M61: 0 | N61: 0 | O61: 0 | P61: 0
A62: 5140 | C62: Telephone and Yellow Pages | D62: 0 | E62: 0 | F62: 0 | G62: 0 | H62: 0 | I62: 0 | J62: 0 | K62: 0 | L62: 0 | M62: 0 | N62: 0 | O62: 0 | P62: 0
A63: 5150 | C63: Advertising | D63: 0 | E63: 431 | F63: 0 | G63: 1293 | H63: 0 | I63: 431 | J63: 0 | K63: 0 | L63: 0 | M63: 0 | N63: 0 | O63: 0 | P63: 2155
A64: 5155 | C64: Cable Provider | D64: 0 | E64: 0 | F64: 0 | G64: 0 | H64: 0 | I64: 0 | J64: 0 | K64: 0 | L64: 0 | M64: 0 | N64: 0 | O64: 0 | P64: 0
A65: 5160 | C65: Office Supplies and Equipment | D65: 0 | E65: 0 | F65: 0 | G65: 0 | H65: 0 | I65: 0 | J65: 0 | K65: 0 | L65: 0 | M65: 0 | N65: 0 | O65: 0 | P65: 0
A66: 5170 | C66: Tenant Screening | D66: 0 | E66: 0 | F66: 0 | G66: 0 | H66: 0 | I66: 0 | J66: 0 | K66: 0 | L66: 0 | M66: 0 | N66: 0 | O66: 0 | P66: 0
A67: 5180 | C67: Postage, Courier & Freight | D67: 0 | E67: 0 | F67: 0 | G67: 0 | H67: 0 | I67: 0 | J67: 0 | K67: 0 | L67: 0 | M67: 0 | N67: 0 | O67: 0 | P67: 0
A68: 5190 | C68: Administrative Expense | D68: 0 | E68: 0 | F68: 0 | G68: 0 | H68: 0 | I68: 0 | J68: 0 | K68: 0 | L68: 0 | M68: 0 | N68: 0 | O68: 0 | P68: 0
A69: 5600 | C69: Mileage | D69: 0 | E69: 0 | F69: 0 | G69: 0 | H69: 0 | I69: 0 | J69: 0 | K69: 0 | L69: 0 | M69: 0 | N69: 0 | O69: 0 | P69: 0
A70: 5620 | C70: Accounting Services | D70: 0 | E70: 0 | F70: 0 | G70: 0 | H70: 0 | I70: 0 | J70: 0 | K70: 0 | L70: 0 | M70: 0 | N70: 0 | O70: 0 | P70: 0
A71: 5630 | C71: Legal Services | D71: 0 | E71: 0 | F71: 0 | G71: 0 | H71: 0 | I71: 0 | J71: 0 | K71: 0 | L71: 0 | M71: 0 | N71: 0 | O71: 0 | P71: 0
A72: 5635 | C72: Office Supplies | D72: 0 | E72: 0 | F72: 0 | G72: 0 | H72: 0 | I72: 0 | J72: 0 | K72: 0 | L72: 0 | M72: 0 | N72: 0 | O72: 0 | P72: 0
A73: 5640 | C73: Miscellaneous | D73: 0 | E73: 0 | F73: 0 | G73: 0 | H73: 0 | I73: 0 | J73: 0 | K73: 0 | L73: 0 | M73: 0 | N73: 0 | O73: 0 | P73: 0
C75: TOTAL ADMINISTRATIVE | D75: =SUM(D60:D73) -> 0 | E75: =SUM(E60:E74) -> 431 | F75: 0 | G75: 1293 | H75: 0 | I75: 431 | J75: 0 | K75: 0 | L75: 0 | M75: 0 | N75: 0 | O75: 0 | P75: =SUM(D75:O75) -> 2155
C77: MANAGEMENT FEES
A78: 5610 | C78: Management Fees | D78: 0 | E78: 0 | F78: 0 | G78: 0 | H78: 0 | I78: 0 | J78: 0 | K78: 0 | L78: 0 | M78: 0 | N78: 0 | O78: 0 | P78: =SUM(D78:O78) -> 0
C79: Commission Placement Fee | D79: 0 | E79: 0 | F79: 0 | G79: 0 | H79: 0 | I79: 0 | J79: 0 | K79: 0 | L79: 0 | M79: 0 | N79: 0 | O79: 0 | P79: =SUM(D79:O79) -> 0
C81: TOTAL MANAGEMENT FEES | D81: =D78+D79 -> 0 | E81: 0 | F81: 0 | G81: 0 | H81: 0 | I81: 0 | J81: 0 | K81: 0 | L81: 0 | M81: 0 | N81: 0 | O81: 0 | P81: =SUM(D81:O81) -> 0
C83: SALARY EXPENSE
A84: 6010 | C84: Payroll-Office & Maintenance | D84: 0 | E84: 0 | F84: 0 | G84: 0 | H84: 0 | I84: 0 | J84: 0 | K84: 0 | L84: 0 | M84: 0 | N84: 0 | O84: 0 | P84: =SUM(D84:O84) -> 0
A85: 6020 | C85: Payroll-Clerical & Office | D85: 0 | E85: 0 | F85: 0 | G85: 0 | H85: 0 | I85: 0 | J85: 0 | K85: 0 | L85: 0 | M85: 0 | N85: 0 | O85: 0 | P85: =SUM(D85:O85) -> 0
A86: 6030 | C86: Payroll-Leasing | D86: 0 | E86: 0 | F86: 0 | G86: 0 | H86: 0 | I86: 0 | J86: 0 | K86: 0 | L86: 0 | M86: 0 | N86: 0 | O86: 0 | P86: 0
A87: 6040 | C87: Payroll-Maintenance | D87: 0 | E87: 0 | F87: 0 | G87: 0 | H87: 0 | I87: 0 | J87: 0 | K87: 0 | L87: 0 | M87: 0 | N87: 0 | O87: 0 | P87: 0
C88: Employer FICA-Total Payroll Tax | D88: 0 | E88: 0 | F88: 0 | G88: 0 | H88: 0 | I88: 0 | J88: 0 | K88: 0 | L88: 0 | M88: 0 | N88: 0 | O88: 0 | P88: 0
C89: Employer FUTA | D89: 0 | E89: 0 | F89: 0 | G89: 0 | H89: 0 | I89: 0 | J89: 0 | K89: 0 | L89: 0 | M89: 0 | N89: 0 | O89: 0 | P89: 0
C90: Employer SUTA | D90: 0 | E90: 0 | F90: 0 | G90: 0 | H90: 0 | I90: 0 | J90: 0 | K90: 0 | L90: 0 | M90: 0 | N90: 0 | O90: 0 | P90: 0
C91: Workers Compensation | D91: 0 | E91: 0 | F91: 0 | G91: 0 | H91: 0 | I91: 0 | J91: 0 | K91: 0 | L91: 0 | M91: 0 | N91: 0 | O91: 0 | P91: 0
A92: 6210 | C92: Group Health Insurance | D92: 0 | E92: 0 | F92: 0 | G92: 0 | H92: 0 | I92: 0 | J92: 0 | K92: 0 | L92: 0 | M92: 0 | N92: 0 | O92: 0 | P92: 0
C93: Other Employee Benefits | D93: 0 | E93: 0 | F93: 0 | G93: 0 | H93: 0 | I93: 0 | J93: 0 | K93: 0 | L93: 0 | M93: 0 | N93: 0 | O93: 0 | P93: 0
C95: TOTAL SALARY | D95: =SUM(D84:D93) -> 0 | E95: 0 | F95: 0 | G95: 0 | H95: 0 | I95: 0 | J95: 0 | K95: 0 | L95: 0 | M95: 0 | N95: 0 | O95: 0 | P95: =SUM(D95:O95) -> 0
C97: REPAIRS & MAINTENANCE
A98: 7010 | C98: Equipment/Repairs | D98: 0 | E98: 0 | F98: 0 | G98: 0 | H98: 0 | I98: 0 | J98: 0 | K98: 0 | L98: 0 | M98: 0 | N98: 0 | O98: 0 | P98: =SUM(D98:O98) -> 0
A99: 7020 | C99: Spare Parts | D99: 0 | E99: 0 | F99: 0 | G99: 0 | H99: 0 | I99: 0 | J99: 0 | K99: 0 | L99: 0 | M99: 0 | N99: 0 | O99: 0 | P99: =SUM(D99:O99) -> 0
A100: 7100 | C100: HVAC | D100: 0 | E100: 0 | F100: 0 | G100: 0 | H100: 0 | I100: 0 | J100: 0 | K100: 0 | L100: 0 | M100: 0 | N100: 0 | O100: 0 | P100: 0
A101: 7110 | C101: Contract Repair Services | D101: 0 | E101: 0 | F101: 0 | G101: 0 | H101: 0 | I101: 0 | J101: 0 | K101: 0 | L101: 0 | M101: 0 | N101: 0 | O101: 0 | P101: 0
A102: 7120 | C102: Pool Repairs and Supplies | D102: 0 | E102: 0 | F102: 0 | G102: 0 | H102: 0 | I102: 0 | J102: 0 | K102: 0 | L102: 0 | M102: 0 | N102: 0 | O102: 0 | P102: 0
A103: 7130 | C103: Paint & Painting Services | D103: 0 | E103: 0 | F103: 0 | G103: 0 | H103: 0 | I103: 0 | J103: 0 | K103: 0 | L103: 0 | M103: 0 | N103: 0 | O103: 0 | P103: 0
A104: 7135 | C104: Maintenance Supplies | D104: 0 | E104: 0 | F104: 0 | G104: 0 | H104: 0 | I104: 0 | J104: 0 | K104: 0 | L104: 0 | M104: 0 | N104: 0 | O104: 0 | P104: 0
A105: 7140 | C105: Plumbing Supplies & Services | D105: 0 | E105: 0 | F105: 0 | G105: 0 | H105: 0 | I105: 0 | J105: 0 | K105: 0 | L105: 0 | M105: 0 | N105: 0 | O105: 0 | P105: 0
A106: 7145 | C106: Cleaning Supplies | D106: 0 | E106: 0 | F106: 0 | G106: 0 | H106: 0 | I106: 0 | J106: 0 | K106: 0 | L106: 0 | M106: 0 | N106: 0 | O106: 0 | P106: 0
A107: 7150 | C107: Electrical Supplies and Services | D107: 0 | E107: 0 | F107: 0 | G107: 0 | H107: 0 | I107: 0 | J107: 0 | K107: 0 | L107: 0 | M107: 0 | N107: 0 | O107: 0 | P107: 0
A108: 7155 | C108: Hardware/Carpentry | D108: 0 | E108: 0 | F108: 0 | G108: 0 | H108: 0 | I108: 0 | J108: 0 | K108: 0 | L108: 0 | M108: 0 | N108: 0 | O108: 0 | P108: 0
A109: 7160 | C109: Make Ready | D109: 70 | E109: 350 | F109: 70 | G109: 100 | H109: 80 | I109: 0 | J109: 0 | K109: 0 | L109: 0 | M109: 0 | N109: 0 | O109: 0 | P109: 670
A110: 7170 | C110: Roof Repairs | D110: 0 | E110: 0 | F110: 0 | G110: 0 | H110: 0 | I110: 0 | J110: 0 | K110: 0 | L110: 0 | M110: 0 | N110: 0 | O110: 0 | P110: 0
A111: 7180 | C111: Building Exterior Repairs | D111: 0 | E111: 0 | F111: 0 | G111: 0 | H111: 0 | I111: 0 | J111: 0 | K111: 0 | L111: 0 | M111: 0 | N111: 0 | O111: 0 | P111: 0
A112: 7190 | C112: Window & Door Repairs | D112: 0 | E112: 0 | F112: 0 | G112: 0 | H112: 0 | I112: 0 | J112: 0 | K112: 0 | L112: 0 | M112: 0 | N112: 0 | O112: 0 | P112: 0
A113: 7200 | C113: Keys and Locks | D113: 0 | E113: 0 | F113: 0 | G113: 0 | H113: 0 | I113: 0 | J113: 0 | K113: 0 | L113: 0 | M113: 0 | N113: 0 | O113: 0 | P113: 0
A114: 7210 | C114: Carpet & Floor Cleaning & Repair | D114: 0 | E114: 0 | F114: 0 | G114: 135.31 | H114: 0 | I114: 0 | J114: 0 | K114: 0 | L114: 0 | M114: 0 | N114: 0 | O114: 0 | P114: 135.31
A115: 7220 | C115: Floor & Carpet Replacement | D115: 0 | E115: 0 | F115: 0 | G115: 0 | H115: 0 | I115: 0 | J115: 0 | K115: 0 | L115: 0 | M115: 0 | N115: 0 | O115: 0 | P115: 0
A116: 7350 | C116: Miscellaneous | D116: 0 | E116: 0 | F116: 150 | G116: 0 | H116: 0 | I116: 0 | J116: 0 | K116: 0 | L116: 0 | M116: 0 | N116: 0 | O116: 0 | P116: =SUM(D116:O116) -> 150
C118: TOTAL REPAIRS & MAINTENANCE | D118: =SUM(D98:D116) -> 70 | E118: 350 | F118: 220 | G118: 235.31 | H118: 80 | I118: 0 | J118: 0 | K118: 0 | L118: 0 | M118: 0 | N118: 0 | O118: 0 | P118: =SUM(D118:O118) -> 955.31
C120: UTILITIES
A121: 7500 | C121: Utilities-Gas | D121: 0 | E121: 0 | F121: 0 | G121: 0 | H121: 0 | I121: 0 | J121: 0 | K121: 0 | L121: 0 | M121: 0 | N121: 0 | O121: 0 | P121: =SUM(D121:O121) -> 0
A122: 7510 | C122: Utilities-Electricity | D122: 269.1 | E122: 271.31 | F122: 117.65 | G122: 293.18 | H122: 230.49 | I122: 276.63 | J122: 0 | K122: 0 | L122: 0 | M122: 0 | N122: 0 | O122: 0 | P122: =SUM(D122:O122) -> 1458.36
A123: 7520 | C123: Utilities-Water | D123: 978.31 | E123: 1810.36 | F123: 113.5 | G123: 1072.51 | H123: 988.51 | I123: 993.93 | J123: 0 | K123: 0 | L123: 0 | M123: 0 | N123: 0 | O123: 0 | P123: 5957.12
A124: 7530 | C124: Utilities-Trash | D124: 473.72 | E124: 518.72 | F124: 111.64 | G124: 473.72 | H124: 498.72 | I124: 473.72 | J124: 0 | K124: 0 | L124: 0 | M124: 0 | N124: 0 | O124: 0 | P124: 2550.24
A125: 7540 | C125: Utilities-Sewer | D125: 0 | E125: 0 | F125: 0 | G125: 0 | H125: 0 | I125: 0 | J125: 0 | K125: 0 | L125: 0 | M125: 0 | N125: 0 | O125: 0 | P125: 0
C127: TOTAL UTILITIES | D127: =SUM(D121:D125) -> 1721.13 | E127: 2600.39 | F127: 342.79 | G127: 1839.41 | H127: 1717.72 | I127: =SUM(I121:I125) -> 1744.28 | J127: =SUM(J121:J125) -> 0 | K127: =SUM(K121:K125) -> 0 | L127: 0 | M127: 0 | N127: 0 | O127: 0 | P127: =SUM(D127:O127) -> 9965.72
C129: CONTRACT SERVICES
A130: 7610 | C130: Contract-Cable | D130: 983.63 | E130: 1013.22 | F130: 1004.47 | G130: 1004.47 | H130: 1004.47 | I130: 1004.47 | J130: 0 | K130: 0 | L130: 0 | M130: 0 | N130: 0 | O130: 0 | P130: =SUM(D130:O130) -> 6014.73
A131: 7620 | C131: Contract-Internet | D131: 1458.72 | E131: 1502.64 | F131: 1502.64 | G131: 1502.64 | H131: 1502.64 | I131: 1502.64 | J131: 0 | K131: 0 | L131: 0 | M131: 0 | N131: 0 | O131: 0 | P131: =SUM(D131:O131) -> 8971.92
A132: 7630 | C132: Contract-Landscape/Yard Care | D132: 0 | E132: 1050 | F132: 160 | G132: 240 | H132: 260 | I132: 0 | J132: 0 | K132: 0 | L132: 0 | M132: 0 | N132: 0 | O132: 0 | P132: 1710
C133: Contract-Pest Control | D133: 0 | E133: 253.31 | F133: 253.31 | G133: 0 | H133: 253.31 | I133: 0 | J133: 0 | K133: 0 | L133: 0 | M133: 0 | N133: 0 | O133: 0 | P133: 759.93
A134: 7650 | C134: Contract-Cleaning | D134: 0 | E134: 0 | F134: 0 | G134: 0 | H134: 0 | I134: 0 | J134: 0 | K134: 0 | L134: 0 | M134: 0 | N134: 0 | O134: 0 | P134: 0
C135: Contract Services | D135: 0 | E135: 0 | F135: 0 | G135: 0 | H135: 0 | I135: 0 | J135: 0 | K135: 0 | L135: 0 | M135: 0 | N135: 0 | O135: 0 | P135: 0
C137: TOTAL CONTRACT SERVICES | D137: =SUM(D130:D135) -> 2442.35 | E137: 3819.17 | F137: 2920.42 | G137: 2747.11 | H137: 3020.42 | I137: 2507.11 | J137: 0 | K137: 0 | L137: 0 | M137: 0 | N137: 0 | O137: 0 | P137: =SUM(D137:O137) -> 17456.58
C139: TAXES & INSURANCE
A140: 8010 | C140: Ad Valorem (Property ) Taxes | D140: 9252.03 | E140: 9252.03 | F140: 9252.03 | G140: 9252.03 | H140: 9252.03 | I140: 9252.03 | J140: 0 | K140: 0 | L140: 0 | M140: 0 | N140: 0 | O140: 0 | P140: =SUM(D140:O140) -> 55512.18
C141: Fees & Duties | D141: 0 | E141: 0 | F141: 0 | G141: 0 | H141: 0 | I141: 0 | J141: 0 | K141: 0 | L141: 0 | M141: 0 | N141: 0 | O141: 0 | P141: =SUM(D141:O141) -> 0
C142: Other Taxes | D142: 0 | E142: 0 | F142: 0 | G142: 0 | H142: 0 | I142: 0 | J142: 0 | K142: 0 | L142: 0 | M142: 0 | N142: 0 | O142: 0 | P142: 0
A143: 8120 | C143: Insurance | D143: 2248.98 | E143: 2248.98 | F143: 2248.98 | G143: 2248.98 | H143: 2248.98 | I143: 2248.98 | J143: 0 | K143: 0 | L143: 0 | M143: 0 | N143: 0 | O143: 0 | P143: 13493.88
C145: TOTAL TAXES & INSURANCE | D145: =SUM(D140:D143) -> 11501.01 | E145: 11501.01 | F145: 11501.01 | G145: =SUM(G140:G144) -> 11501.01 | H145: 11501.01 | I145: 11501.01 | J145: 0 | K145: 0 | L145: 0 | M145: 0 | N145: 0 | O145: 0 | P145: =SUM(D145:O145) -> 69006.06
C148: TOTAL OPERATING EXPENSE | D148: =D75+D81+D84+D118+D127+D137+D145 -> 15734.49 | E148: 18701.57 | F148: 14984.22 | G148: 17615.84 | H148: 16319.15 | I148: 16183.4 | J148: 0 | K148: 0 | L148: 0 | M148: 0 | N148: 0 | O148: 0 | P148: =SUM(D148:O148) -> 99538.67
C150: NET OPERATING INCOME | D150: =D55-D148 -> 31852.99 | E150: 31656.17 | F150: 36450.97 | G150: 33846.38 | H150: 31839.78 | I150: 33521.48 | J150: 0 | K150: 0 | L150: 0 | M150: 0 | N150: 0 | O150: 0 | P150: =P55-P148 -> 199167.77
C152: RECURRING REPLACEMENTS
C153: Flooring Replacement | D153: 0 | E153: 0 | F153: 0 | G153: 0 | H153: 0 | I153: 0 | J153: 0 | K153: 0 | L153: 0 | M153: 0 | N153: 0 | O153: 0 | P153: =SUM(D153:O153) -> 0
C154: Mini-Blind Replacement | D154: 0 | E154: 0 | F154: 0 | G154: 0 | H154: 0 | I154: 0 | J154: 0 | K154: 0 | L154: 0 | M154: 0 | N154: 0 | O154: 0 | P154: =SUM(D154:O154) -> 0
C155: Appliance Replacement | D155: 0 | E155: 0 | F155: 0 | G155: 0 | H155: 0 | I155: 0 | J155: 0 | K155: 0 | L155: 0 | M155: 0 | N155: 0 | O155: 0 | P155: =SUM(D155:O155) -> 0
C156: Individual Unit Water Heater | D156: 0 | E156: 0 | F156: 0 | G156: 0 | H156: 0 | I156: 0 | J156: 0 | K156: 0 | L156: 0 | M156: 0 | N156: 0 | O156: 0 | P156: =SUM(D156:O156) -> 0
C158: TOTAL RECURRING REPLACEMENTS | D158: =SUM(D153:D156) -> 0 | E158: 0 | F158: 0 | G158: 0 | H158: 0 | I158: 0 | J158: 0 | K158: 0 | L158: 0 | M158: 0 | N158: 0 | O158: 0 | P158: =SUM(P153:P156) -> 0
C160: NON-RECURRING REPLACMENTS
C161: Various Contractors | D161: 0 | E161: 425.95 | F161: 0 | G161: 2713.55 | H161: 0 | I161: 2100 | J161: 0 | K161: 0 | L161: 0 | M161: 0 | N161: 0 | O161: 0 | P161: =SUM(D161:O161) -> 5239.5
C162: Playground/Recreational Eqp. | D162: 0 | E162: 0 | F162: 0 | G162: 0 | H162: 0 | I162: 0 | J162: 0 | K162: 0 | L162: 0 | M162: 0 | N162: 0 | O162: 0 | P162: =SUM(D162:O162) -> 0
C163: Monument/Directional Signage | D163: 0 | E163: 0 | F163: 0 | G163: 0 | H163: 0 | I163: 0 | J163: 0 | K163: 0 | L163: 0 | M163: 0 | N163: 0 | O163: 0 | P163: 0
C164: Lawns/Trees/Shrubs Repl. | D164: 0 | E164: 0 | F164: 0 | G164: 0 | H164: 0 | I164: 0 | J164: 0 | K164: 0 | L164: 0 | M164: 0 | N164: 0 | O164: 0 | P164: 0
C165: Paving/parking Lot Repl. | D165: 0 | E165: 0 | F165: 0 | G165: 0 | H165: 0 | I165: 0 | J165: 0 | K165: 0 | L165: 0 | M165: 0 | N165: 0 | O165: 0 | P165: 0
C166: Roof Replacement/Overlay | D166: 0 | E166: 0 | F166: 0 | G166: 0 | H166: 0 | I166: 0 | J166: 0 | K166: 0 | L166: 0 | M166: 0 | N166: 0 | O166: 0 | P166: 0
C167: Ext. Carpentry/Siding/Gutter | D167: 0 | E167: 0 | F167: 0 | G167: 0 | H167: 0 | I167: 0 | J167: 0 | K167: 0 | L167: 0 | M167: 0 | N167: 0 | O167: 0 | P167: 0
C168: Exterior Painting | D168: 0 | E168: 0 | F168: 0 | G168: 0 | H168: 0 | I168: 0 | J168: 0 | K168: 0 | L168: 0 | M168: 0 | N168: 0 | O168: 0 | P168: 0
C169: Concrete/Foundation Repairs | D169: 0 | E169: 0 | F169: 0 | G169: 0 | H169: 0 | I169: 0 | J169: 0 | K169: 0 | L169: 0 | M169: 0 | N169: 0 | O169: 0 | P169: 0
C170: Major Exterior Repairs | D170: 0 | E170: 0 | F170: 0 | G170: 0 | H170: 0 | I170: 0 | J170: 0 | K170: 0 | L170: 0 | M170: 0 | N170: 0 | O170: 0 | P170: 0
C171: Bricks/Stucco & Masonry | D171: 0 | E171: 0 | F171: 0 | G171: 0 | H171: 0 | I171: 0 | J171: 0 | K171: 0 | L171: 0 | M171: 0 | N171: 0 | O171: 0 | P171: 0
C172: Access Gate Replacement | D172: 0 | E172: 0 | F172: 0 | G172: 0 | H172: 0 | I172: 0 | J172: 0 | K172: 0 | L172: 0 | M172: 0 | N172: 0 | O172: 0 | P172: 0
C173: HVAC Replacement | D173: 0 | E173: 0 | F173: 0 | G173: 0 | H173: 0 | I173: 0 | J173: 0 | K173: 0 | L173: 0 | M173: 0 | N173: 0 | O173: 0 | P173: 0
C174: Plumbing Repalcement | D174: 0 | E174: 0 | F174: 0 | G174: 0 | H174: 0 | I174: 0 | J174: 0 | K174: 0 | L174: 0 | M174: 0 | N174: 0 | O174: 0 | P174: 0
C175: Electrical Replacement | D175: 0 | E175: 0 | F175: 0 | G175: 0 | H175: 0 | I175: 0 | J175: 0 | K175: 0 | L175: 0 | M175: 0 | N175: 0 | O175: 0 | P175: 0
C176: Pool & Equipment Expense | D176: 0 | E176: 0 | F176: 0 | G176: 0 | H176: 0 | I176: 0 | J176: 0 | K176: 0 | L176: 0 | M176: 0 | N176: 0 | O176: 0 | P176: 0
C177: Counter Resurfacing | D177: 0 | E177: 0 | F177: 0 | G177: 0 | H177: 0 | I177: 0 | J177: 0 | K177: 0 | L177: 0 | M177: 0 | N177: 0 | O177: 0 | P177: 0
C178: Down Units Repair Expense | D178: 0 | E178: 0 | F178: 0 | G178: 0 | H178: 0 | I178: 0 | J178: 0 | K178: 0 | L178: 0 | M178: 0 | N178: 0 | O178: 0 | P178: 0
C179: Other Non-Recurring Replacements | D179: 0 | E179: 0 | F179: 0 | G179: 0 | H179: 0 | I179: 0 | J179: 0 | K179: 0 | L179: 0 | M179: 0 | N179: 0 | O179: 0 | P179: 0
C180: Fire & Storm Damage | D180: 0 | E180: 0 | F180: 0 | G180: 0 | H180: 0 | I180: 0 | J180: 0 | K180: 0 | L180: 0 | M180: 0 | N180: 0 | O180: 0 | P180: 0
C181: Insurance Adjuster fee | D181: 0 | E181: 0 | F181: 0 | G181: 0 | H181: 0 | I181: 0 | J181: 0 | K181: 0 | L181: 0 | M181: 0 | N181: 0 | O181: 0 | P181: 0
C182: Computer Equipment Purchase | D182: 0 | E182: 0 | F182: 0 | G182: 0 | H182: 0 | I182: 0 | J182: 0 | K182: 0 | L182: 0 | M182: 0 | N182: 0 | O182: 0 | P182: 0
C183: Insured Loss Recovery | D183: 0 | E183: 0 | F183: 0 | G183: 0 | H183: 0 | I183: 0 | J183: 0 | K183: 0 | L183: 0 | M183: 0 | N183: 0 | O183: 0 | P183: 0
C184: Construction Supervision fee | D184: 0 | E184: 0 | F184: 0 | G184: 0 | H184: 0 | I184: 0 | J184: 0 | K184: 0 | L184: 0 | M184: 0 | N184: 0 | O184: 0 | P184: 0
C186: TOTAL NON-RECURRING REPLACEMENTS | D186: =SUM(D161:D184) -> 0 | E186: 425.95 | F186: 0 | G186: 2713.55 | H186: 0 | I186: 2100 | J186: 0 | K186: 0 | L186: 0 | M186: 0 | N186: 0 | O186: 0 | P186: =SUM(P161:P184) -> 5239.5
C188: TOTAL PROPERTY REPLACEMENTS | D188: =D158+D186 -> 0 | E188: 425.95 | F188: 0 | G188: 2713.55 | H188: 0 | I188: 2100 | J188: 0 | K188: 0 | L188: 0 | M188: 0 | N188: 0 | O188: 0 | P188: =P158+P186 -> 5239.5
C190: RESERVE ACTIVITY
C191: Reserve Payment | D191: 0 | E191: 0 | F191: 0 | G191: 0 | H191: 0 | I191: 0 | J191: 0 | K191: 0 | L191: 0 | M191: 0 | N191: 0 | O191: 0 | P191: =SUM(D191:O191) -> 0
C192: Reserve (Reimbursement) | D192: 0 | E192: 0 | F192: 0 | G192: 0 | H192: 0 | I192: 0 | J192: 0 | K192: 0 | L192: 0 | M192: 0 | N192: 0 | O192: 0 | P192: =SUM(D192:O192) -> 0
C194: NET RESERVE ACTIVITY | D194: =D191+D192 -> 0 | E194: 0 | F194: 0 | G194: 0 | H194: 0 | I194: 0 | J194: 0 | K194: 0 | L194: 0 | M194: 0 | N194: 0 | O194: 0 | P194: =P191+P192 -> 0
C196: AVAILABLE FOR DEBT | D196: =D150-D188-D194 -> 31852.99 | E196: 31230.22 | F196: 36450.97 | G196: 31132.83 | H196: 31839.78 | I196: 31421.48 | J196: 0 | K196: 0 | L196: 0 | M196: 0 | N196: 0 | O196: 0 | P196: =P150-P188-P194 -> 193928.27
C198: DEBT SERVICE
A199: 8080 | C199: Interest-First Mortgage | D199: 0 | E199: 0 | F199: 0 | G199: 0 | H199: 0 | I199: 0 | J199: 0 | K199: 0 | L199: 0 | M199: 0 | N199: 0 | O199: 0 | P199: =SUM(D199:O199) -> 0
C200: Interest-Second Mortgage | D200: 0 | E200: 0 | F200: 0 | G200: 0 | H200: 0 | I200: 0 | J200: 0 | K200: 0 | L200: 0 | M200: 0 | N200: 0 | O200: 0 | P200: =SUM(D200:O200) -> 0
C201: Interest-Other | D201: 0 | E201: 0 | F201: 0 | G201: 0 | H201: 0 | I201: 0 | J201: 0 | K201: 0 | L201: 0 | M201: 0 | N201: 0 | O201: 0 | P201: 0
C202: Principle--First Mortgage | D202: 0 | E202: 0 | F202: 0 | G202: 0 | H202: 0 | I202: 0 | J202: 0 | K202: 0 | L202: 0 | M202: 0 | N202: 0 | O202: 0 | P202: 0
C203: Principle-Second Mortgage | D203: 0 | E203: 0 | F203: 0 | G203: 0 | H203: 0 | I203: 0 | J203: 0 | K203: 0 | L203: 0 | M203: 0 | N203: 0 | O203: 0 | P203: 0
C204: Principle-Balloon | D204: 0 | E204: 0 | F204: 0 | G204: 0 | H204: 0 | I204: 0 | J204: 0 | K204: 0 | L204: 0 | M204: 0 | N204: 0 | O204: 0 | P204: 0
C205: MIP Payment | D205: 0 | E205: 0 | F205: 0 | G205: 0 | H205: 0 | I205: 0 | J205: 0 | K205: 0 | L205: 0 | M205: 0 | N205: 0 | O205: 0 | P205: 0
C206: Land Lease Payment | D206: 0 | E206: 0 | F206: 0 | G206: 0 | H206: 0 | I206: 0 | J206: 0 | K206: 0 | L206: 0 | M206: 0 | N206: 0 | O206: 0 | P206: 0
C208: TOTAL DEBT SERVICE | D208: =SUM(D199:D206) -> 0 | E208: 0 | F208: 0 | G208: 0 | H208: 0 | I208: 0 | J208: 0 | K208: 0 | L208: 0 | M208: 0 | N208: 0 | O208: 0 | P208: =SUM(P199:P206) -> 0
C210: NET CASH FLOW | D210: =D196-D208 -> 31852.99 | E210: 31230.22 | F210: 36450.97 | G210: 31132.83 | H210: 31839.78 | I210: 31421.48 | J210: 0 | K210: 0 | L210: 0 | M210: 0 | N210: 0 | O210: 0 | P210: =P196-P208 -> 193928.27
